{"text_format":"3","workbook":"xlsx","n_sheets":3,"sheets":["Dữ liệu lộ trình","Lộ trình Agile","Giới thiệu"],"not_rendered":{"defined_names":5},"read":"whole","date_system":"1900"}

{"sheet":"Dữ liệu lộ trình","index":0,"n_rows":13,"n_cols":7,"rows_kept":13,"merged":[[12,1,12,4]]}
["Tạo Lộ trình Agile bằng cách nhập các mốc hoặc hoạt động quan trọng vào bảng Dữ liệu lộ trình trong trang tính này.\nTiêu đề của trang tính này nằm trong ô B1. \nThông tin về cách sử dụng trang tính này, bao gồm hướng dẫn cho bộ đọc màn hình nằm trong trang tính Giới thiệu.\nTiếp tục dẫn hướng xuống cột A để xem thêm hướng dẫn.","Dữ liệu Đường thời gian Agile"]
["Đầu đề bảng nằm trong các ô B2 đến E2. Sử dụng bộ lọc đầu đề để sắp xếp bảng và tìm các mục cụ thể.\nLộ trình Agile hoạt động hiệu quả nhất khi bảng được sắp xếp theo thứ tự Ưu tiên Tăng dần, sau đó là Mốc hoặc Hoạt động.\nDữ liệu mẫu nằm trong bảng Dữ liệu lộ trình, từ ô từ B3 đến ô E12. \nKhi hoàn thành một mốc hoặc hoạt động, hãy cập nhật trường Kết quả tương ứng để hiển thị kết quả trong trang tính Lộ trình Agile. Nhập \"Không thay đổi\" để tô sáng các mốc không ảnh hưởng.\nTiếp tục tới ô A13 để xem hướng dẫn tiếp theo.\n","Mục tiêu","Mốc hoặc hoạt động","Mức ưu tiên","Kết quả",null,"<-- sắp xếp bảng theo Mức ưu tiên và Mốc hoặc Hoạt động theo thứ tự tăng dần"]
[null,"Hiện tại","Hoạt động 1\nXây dựng nguyên mẫu","1 - Cao",null,null,"<-- thêm kết quả vào từng Mốc đã hoàn thành. Nhập \"Không thay đổi\" để tô sáng các mốc không ảnh hưởng."]
[null,"Ngắn hạn","Hoạt động 2\nNguyên mẫu demo","1 - Cao"]
[null,"Hiện tại","Hoạt động 6","1 - Cao"]
[null,"Tương lai","Hoạt động 7\nThực hiện Phát triển thuê ngoài trong giai đoạn một","1 - Cao"]
[null,"Đã hoàn thành","Hoạt động 9\nGiai đoạn một được phê duyệt","1 - Cao","Giảm 10%"]
[null,"Tương lai","Hoạt động 10","2 - Trung bình"]
[null,"Ngắn hạn","Hoạt động 8","2 - Trung bình"]
[null,"Đã hoàn thành","Hoạt động 3","3 - Thấp","Không thay đổi"]
[null,"Tương lai","Hoạt động 4","3 - Thấp"]
[null,"Hiện tại","Hoạt động 5","3 - Thấp"]
["Thêm mục mới bằng cách chèn hàng mới vào bảng ở trên dòng này.\nĐây là hướng dẫn cuối cùng trong trang tính này.","Thêm mục mới bằng cách chèn hàng mới ở trên dòng này"]

{"sheet":"Lộ trình Agile","index":1,"n_rows":100,"n_cols":8,"rows_kept":100}
["Lộ trình Agile hiển thị các mốc và hoạt động từ trang tính Dữ liệu lộ trình nằm trong trang tính này. \nTiêu đề nằm trong ô B1. \nCác Kết_quả chứa cụm \"Không thay đổi\" sẽ được tô sáng bằng màu cam nhạt, rgb(255, 230, 210).\nCác mốc hoặc hoạt động đã hoàn thành sẽ được tô sáng bằng màu lục nhạt, rgb(237,251,219).","Lộ trình Agile"]
["Đầu đề biểu đồ nằm trong các ô B2, D2, F2 và H2. Bao gồm: Đã hoàn thành, Hiện tại, Ngắn hạn và Tương lai. Sửa đổi các đầu đề này để thay đổi giá trị lựa chọn Mục_tiêu trong bảng Dữ liệu lộ trình trên trang tính Dữ liệu lộ trình.\nCác ô B3 đến H20 chứa Mốc và hoạt động cho đầu đề trong hàng này. \nCác mốc và hoạt động sẽ được tạo trong trang tính Dữ liệu lộ trình.\nKHÔNG sửa đổi hoặc xóa mục nhập trong trang tính này. Cập nhật bảng Dữ liệu lộ trình trong trang tính Dữ liệu lộ trình để cập nhật nội dung trong trang tính này.\nĐây là hướng dẫn cuối cùng trong trang tính này.","Đã hoàn thành",null,"Hiện tại",null,"Ngắn hạn",null,"Tương lai"]
[null,{"$f":"IFERROR(INDEX(Hoạt_động,SMALL(IF(Mục_tiêu=$B$2,ROW(Hoạt_động)-MIN(ROW(Hoạt_động))+1),ROWS($B$3:B3)))&\" \"&CHAR(10)&(INDEX(Kết_quả,SMALL(IF(Mục_tiêu=$B$2,ROW(Kết_quả)-MIN(ROW(Kết_quả))+1),ROWS($B$3:B3))))&CHAR(10),\"\")","v":"Hoạt động 9\nGiai đoạn một được phê duyệt \nGiảm 10%\n"},null,{"$f":"IFERROR(INDEX(Hoạt_động,SMALL(IF(Mục_tiêu=$D$2,ROW(Hoạt_động)-MIN(ROW(Hoạt_động))+1),ROWS($B$3:B3)))&CHAR(10),\"\")","v":"Hoạt động 1\nXây dựng nguyên mẫu\n"},null,{"$f":"IFERROR(INDEX(Hoạt_động,SMALL(IF(Mục_tiêu=$F$2,ROW(Hoạt_động)-MIN(ROW(Hoạt_động))+1),ROWS($B$3:B3)))&CHAR(10),\"\")","v":"Hoạt động 2\nNguyên mẫu demo\n"},null,{"$f":"IFERROR(INDEX(Hoạt_động,SMALL(IF(Mục_tiêu=$H$2,ROW(Hoạt_động)-MIN(ROW(Hoạt_động))+1),ROWS($B$3:B3)))&CHAR(10),\"\")","v":"Hoạt động 7\nThực hiện Phát triển thuê ngoài trong giai đoạn một\n"}]
[null,{"$f":"IFERROR(INDEX(Hoạt_động,SMALL(IF(Mục_tiêu=$B$2,ROW(Hoạt_động)-MIN(ROW(Hoạt_động))+1),ROWS($B$3:B4)))&\" \"&CHAR(10)&(INDEX(Kết_quả,SMALL(IF(Mục_tiêu=$B$2,ROW(Kết_quả)-MIN(ROW(Kết_quả))+1),ROWS($B$3:B4))))&CHAR(10),\"\")","v":"Hoạt động 3 \nKhông thay đổi\n"},null,{"$f":"IFERROR(INDEX(Hoạt_động,SMALL(IF(Mục_tiêu=$D$2,ROW(Hoạt_động)-MIN(ROW(Hoạt_động))+1),ROWS($B$3:B4)))&CHAR(10),\"\")","v":"Hoạt động 6\n"},null,{"$f":"IFERROR(INDEX(Hoạt_động,SMALL(IF(Mục_tiêu=$F$2,ROW(Hoạt_động)-MIN(ROW(Hoạt_động))+1),ROWS($B$3:B4)))&CHAR(10),\"\")","v":"Hoạt động 8\n"},null,{"$f":"IFERROR(INDEX(Hoạt_động,SMALL(IF(Mục_tiêu=$H$2,ROW(Hoạt_động)-MIN(ROW(Hoạt_động))+1),ROWS($B$3:B4)))&CHAR(10),\"\")","v":"Hoạt động 10\n"}]
[null,{"$f":"IFERROR(INDEX(Hoạt_động,SMALL(IF(Mục_tiêu=$B$2,ROW(Hoạt_động)-MIN(ROW(Hoạt_động))+1),ROWS($B$3:B5)))&\" \"&CHAR(10)&(INDEX(Kết_quả,SMALL(IF(Mục_tiêu=$B$2,ROW(Kết_quả)-MIN(ROW(Kết_quả))+1),ROWS($B$3:B5))))&CHAR(10),\"\")","v":""},null,{"$f":"IFERROR(INDEX(Hoạt_động,SMALL(IF(Mục_tiêu=$D$2,ROW(Hoạt_động)-MIN(ROW(Hoạt_động))+1),ROWS($B$3:B5)))&CHAR(10),\"\")","v":"Hoạt động 5\n"},null,{"$f":"IFERROR(INDEX(Hoạt_động,SMALL(IF(Mục_tiêu=$F$2,ROW(Hoạt_động)-MIN(ROW(Hoạt_động))+1),ROWS($B$3:B5)))&CHAR(10),\"\")","v":""},null,{"$f":"IFERROR(INDEX(Hoạt_động,SMALL(IF(Mục_tiêu=$H$2,ROW(Hoạt_động)-MIN(ROW(Hoạt_động))+1),ROWS($B$3:B5)))&CHAR(10),\"\")","v":"Hoạt động 4\n"}]
[null,{"$f":"IFERROR(INDEX(Hoạt_động,SMALL(IF(Mục_tiêu=$B$2,ROW(Hoạt_động)-MIN(ROW(Hoạt_động))+1),ROWS($B$3:B6)))&\" \"&CHAR(10)&(INDEX(Kết_quả,SMALL(IF(Mục_tiêu=$B$2,ROW(Kết_quả)-MIN(ROW(Kết_quả))+1),ROWS($B$3:B6))))&CHAR(10),\"\")","v":""},null,{"$f":"IFERROR(INDEX(Hoạt_động,SMALL(IF(Mục_tiêu=$D$2,ROW(Hoạt_động)-MIN(ROW(Hoạt_động))+1),ROWS($B$3:B6)))&CHAR(10),\"\")","v":""},null,{"$f":"IFERROR(INDEX(Hoạt_động,SMALL(IF(Mục_tiêu=$F$2,ROW(Hoạt_động)-MIN(ROW(Hoạt_động))+1),ROWS($B$3:B6)))&CHAR(10),\"\")","v":""},null,{"$f":"IFERROR(INDEX(Hoạt_động,SMALL(IF(Mục_tiêu=$H$2,ROW(Hoạt_động)-MIN(ROW(Hoạt_động))+1),ROWS($B$3:B6)))&CHAR(10),\"\")","v":""}]
[null,{"$f":"IFERROR(INDEX(Hoạt_động,SMALL(IF(Mục_tiêu=$B$2,ROW(Hoạt_động)-MIN(ROW(Hoạt_động))+1),ROWS($B$3:B7)))&\" \"&CHAR(10)&(INDEX(Kết_quả,SMALL(IF(Mục_tiêu=$B$2,ROW(Kết_quả)-MIN(ROW(Kết_quả))+1),ROWS($B$3:B7))))&CHAR(10),\"\")","v":""},null,{"$f":"IFERROR(INDEX(Hoạt_động,SMALL(IF(Mục_tiêu=$D$2,ROW(Hoạt_động)-MIN(ROW(Hoạt_động))+1),ROWS($B$3:B7)))&CHAR(10),\"\")","v":""},null,{"$f":"IFERROR(INDEX(Hoạt_động,SMALL(IF(Mục_tiêu=$F$2,ROW(Hoạt_động)-MIN(ROW(Hoạt_động))+1),ROWS($B$3:B7)))&CHAR(10),\"\")","v":""},null,{"$f":"IFERROR(INDEX(Hoạt_động,SMALL(IF(Mục_tiêu=$H$2,ROW(Hoạt_động)-MIN(ROW(Hoạt_động))+1),ROWS($B$3:B7)))&CHAR(10),\"\")","v":""}]
[null,{"$f":"IFERROR(INDEX(Hoạt_động,SMALL(IF(Mục_tiêu=$B$2,ROW(Hoạt_động)-MIN(ROW(Hoạt_động))+1),ROWS($B$3:B8)))&\" \"&CHAR(10)&(INDEX(Kết_quả,SMALL(IF(Mục_tiêu=$B$2,ROW(Kết_quả)-MIN(ROW(Kết_quả))+1),ROWS($B$3:B8))))&CHAR(10),\"\")","v":""},null,{"$f":"IFERROR(INDEX(Hoạt_động,SMALL(IF(Mục_tiêu=$D$2,ROW(Hoạt_động)-MIN(ROW(Hoạt_động))+1),ROWS($B$3:B8)))&CHAR(10),\"\")","v":""},null,{"$f":"IFERROR(INDEX(Hoạt_động,SMALL(IF(Mục_tiêu=$F$2,ROW(Hoạt_động)-MIN(ROW(Hoạt_động))+1),ROWS($B$3:B8)))&CHAR(10),\"\")","v":""},null,{"$f":"IFERROR(INDEX(Hoạt_động,SMALL(IF(Mục_tiêu=$H$2,ROW(Hoạt_động)-MIN(ROW(Hoạt_động))+1),ROWS($B$3:B8)))&CHAR(10),\"\")","v":""}]
[null,{"$f":"IFERROR(INDEX(Hoạt_động,SMALL(IF(Mục_tiêu=$B$2,ROW(Hoạt_động)-MIN(ROW(Hoạt_động))+1),ROWS($B$3:B9)))&\" \"&CHAR(10)&(INDEX(Kết_quả,SMALL(IF(Mục_tiêu=$B$2,ROW(Kết_quả)-MIN(ROW(Kết_quả))+1),ROWS($B$3:B9))))&CHAR(10),\"\")","v":""},null,{"$f":"IFERROR(INDEX(Hoạt_động,SMALL(IF(Mục_tiêu=$D$2,ROW(Hoạt_động)-MIN(ROW(Hoạt_động))+1),ROWS($B$3:B9)))&CHAR(10),\"\")","v":""},null,{"$f":"IFERROR(INDEX(Hoạt_động,SMALL(IF(Mục_tiêu=$F$2,ROW(Hoạt_động)-MIN(ROW(Hoạt_động))+1),ROWS($B$3:B9)))&CHAR(10),\"\")","v":""},null,{"$f":"IFERROR(INDEX(Hoạt_động,SMALL(IF(Mục_tiêu=$H$2,ROW(Hoạt_động)-MIN(ROW(Hoạt_động))+1),ROWS($B$3:B9)))&CHAR(10),\"\")","v":""}]
[null,{"$f":"IFERROR(INDEX(Hoạt_động,SMALL(IF(Mục_tiêu=$B$2,ROW(Hoạt_động)-MIN(ROW(Hoạt_động))+1),ROWS($B$3:B10)))&\" \"&CHAR(10)&(INDEX(Kết_quả,SMALL(IF(Mục_tiêu=$B$2,ROW(Kết_quả)-MIN(ROW(Kết_quả))+1),ROWS($B$3:B10))))&CHAR(10),\"\")","v":""},null,{"$f":"IFERROR(INDEX(Hoạt_động,SMALL(IF(Mục_tiêu=$D$2,ROW(Hoạt_động)-MIN(ROW(Hoạt_động))+1),ROWS($B$3:B10)))&CHAR(10),\"\")","v":""},null,{"$f":"IFERROR(INDEX(Hoạt_động,SMALL(IF(Mục_tiêu=$F$2,ROW(Hoạt_động)-MIN(ROW(Hoạt_động))+1),ROWS($B$3:B10)))&CHAR(10),\"\")","v":""},null,{"$f":"IFERROR(INDEX(Hoạt_động,SMALL(IF(Mục_tiêu=$H$2,ROW(Hoạt_động)-MIN(ROW(Hoạt_động))+1),ROWS($B$3:B10)))&CHAR(10),\"\")","v":""}]
[null,{"$f":"IFERROR(INDEX(Hoạt_động,SMALL(IF(Mục_tiêu=$B$2,ROW(Hoạt_động)-MIN(ROW(Hoạt_động))+1),ROWS($B$3:B11)))&\" \"&CHAR(10)&(INDEX(Kết_quả,SMALL(IF(Mục_tiêu=$B$2,ROW(Kết_quả)-MIN(ROW(Kết_quả))+1),ROWS($B$3:B11))))&CHAR(10),\"\")","v":""},null,{"$f":"IFERROR(INDEX(Hoạt_động,SMALL(IF(Mục_tiêu=$D$2,ROW(Hoạt_động)-MIN(ROW(Hoạt_động))+1),ROWS($B$3:B11)))&CHAR(10),\"\")","v":""},null,{"$f":"IFERROR(INDEX(Hoạt_động,SMALL(IF(Mục_tiêu=$F$2,ROW(Hoạt_động)-MIN(ROW(Hoạt_động))+1),ROWS($B$3:B11)))&CHAR(10),\"\")","v":""},null,{"$f":"IFERROR(INDEX(Hoạt_động,SMALL(IF(Mục_tiêu=$H$2,ROW(Hoạt_động)-MIN(ROW(Hoạt_động))+1),ROWS($B$3:B11)))&CHAR(10),\"\")","v":""}]
[null,{"$f":"IFERROR(INDEX(Hoạt_động,SMALL(IF(Mục_tiêu=$B$2,ROW(Hoạt_động)-MIN(ROW(Hoạt_động))+1),ROWS($B$3:B12)))&\" \"&CHAR(10)&(INDEX(Kết_quả,SMALL(IF(Mục_tiêu=$B$2,ROW(Kết_quả)-MIN(ROW(Kết_quả))+1),ROWS($B$3:B12))))&CHAR(10),\"\")","v":""},null,{"$f":"IFERROR(INDEX(Hoạt_động,SMALL(IF(Mục_tiêu=$D$2,ROW(Hoạt_động)-MIN(ROW(Hoạt_động))+1),ROWS($B$3:B12)))&CHAR(10),\"\")","v":""},null,{"$f":"IFERROR(INDEX(Hoạt_động,SMALL(IF(Mục_tiêu=$F$2,ROW(Hoạt_động)-MIN(ROW(Hoạt_động))+1),ROWS($B$3:B12)))&CHAR(10),\"\")","v":""},null,{"$f":"IFERROR(INDEX(Hoạt_động,SMALL(IF(Mục_tiêu=$H$2,ROW(Hoạt_động)-MIN(ROW(Hoạt_động))+1),ROWS($B$3:B12)))&CHAR(10),\"\")","v":""}]
[null,{"$f":"IFERROR(INDEX(Hoạt_động,SMALL(IF(Mục_tiêu=$B$2,ROW(Hoạt_động)-MIN(ROW(Hoạt_động))+1),ROWS($B$3:B13)))&\" \"&CHAR(10)&(INDEX(Kết_quả,SMALL(IF(Mục_tiêu=$B$2,ROW(Kết_quả)-MIN(ROW(Kết_quả))+1),ROWS($B$3:B13))))&CHAR(10),\"\")","v":""},null,{"$f":"IFERROR(INDEX(Hoạt_động,SMALL(IF(Mục_tiêu=$D$2,ROW(Hoạt_động)-MIN(ROW(Hoạt_động))+1),ROWS($B$3:B13)))&CHAR(10),\"\")","v":""},null,{"$f":"IFERROR(INDEX(Hoạt_động,SMALL(IF(Mục_tiêu=$F$2,ROW(Hoạt_động)-MIN(ROW(Hoạt_động))+1),ROWS($B$3:B13)))&CHAR(10),\"\")","v":""},null,{"$f":"IFERROR(INDEX(Hoạt_động,SMALL(IF(Mục_tiêu=$H$2,ROW(Hoạt_động)-MIN(ROW(Hoạt_động))+1),ROWS($B$3:B13)))&CHAR(10),\"\")","v":""}]
[null,{"$f":"IFERROR(INDEX(Hoạt_động,SMALL(IF(Mục_tiêu=$B$2,ROW(Hoạt_động)-MIN(ROW(Hoạt_động))+1),ROWS($B$3:B14)))&\" \"&CHAR(10)&(INDEX(Kết_quả,SMALL(IF(Mục_tiêu=$B$2,ROW(Kết_quả)-MIN(ROW(Kết_quả))+1),ROWS($B$3:B14))))&CHAR(10),\"\")","v":""},null,{"$f":"IFERROR(INDEX(Hoạt_động,SMALL(IF(Mục_tiêu=$D$2,ROW(Hoạt_động)-MIN(ROW(Hoạt_động))+1),ROWS($B$3:B14)))&CHAR(10),\"\")","v":""},null,{"$f":"IFERROR(INDEX(Hoạt_động,SMALL(IF(Mục_tiêu=$F$2,ROW(Hoạt_động)-MIN(ROW(Hoạt_động))+1),ROWS($B$3:B14)))&CHAR(10),\"\")","v":""},null,{"$f":"IFERROR(INDEX(Hoạt_động,SMALL(IF(Mục_tiêu=$H$2,ROW(Hoạt_động)-MIN(ROW(Hoạt_động))+1),ROWS($B$3:B14)))&CHAR(10),\"\")","v":""}]
[null,{"$f":"IFERROR(INDEX(Hoạt_động,SMALL(IF(Mục_tiêu=$B$2,ROW(Hoạt_động)-MIN(ROW(Hoạt_động))+1),ROWS($B$3:B15)))&\" \"&CHAR(10)&(INDEX(Kết_quả,SMALL(IF(Mục_tiêu=$B$2,ROW(Kết_quả)-MIN(ROW(Kết_quả))+1),ROWS($B$3:B15))))&CHAR(10),\"\")","v":""},null,{"$f":"IFERROR(INDEX(Hoạt_động,SMALL(IF(Mục_tiêu=$D$2,ROW(Hoạt_động)-MIN(ROW(Hoạt_động))+1),ROWS($B$3:B15)))&CHAR(10),\"\")","v":""},null,{"$f":"IFERROR(INDEX(Hoạt_động,SMALL(IF(Mục_tiêu=$F$2,ROW(Hoạt_động)-MIN(ROW(Hoạt_động))+1),ROWS($B$3:B15)))&CHAR(10),\"\")","v":""},null,{"$f":"IFERROR(INDEX(Hoạt_động,SMALL(IF(Mục_tiêu=$H$2,ROW(Hoạt_động)-MIN(ROW(Hoạt_động))+1),ROWS($B$3:B15)))&CHAR(10),\"\")","v":""}]
[null,{"$f":"IFERROR(INDEX(Hoạt_động,SMALL(IF(Mục_tiêu=$B$2,ROW(Hoạt_động)-MIN(ROW(Hoạt_động))+1),ROWS($B$3:B16)))&\" \"&CHAR(10)&(INDEX(Kết_quả,SMALL(IF(Mục_tiêu=$B$2,ROW(Kết_quả)-MIN(ROW(Kết_quả))+1),ROWS($B$3:B16))))&CHAR(10),\"\")","v":""},null,{"$f":"IFERROR(INDEX(Hoạt_động,SMALL(IF(Mục_tiêu=$D$2,ROW(Hoạt_động)-MIN(ROW(Hoạt_động))+1),ROWS($B$3:B16)))&CHAR(10),\"\")","v":""},null,{"$f":"IFERROR(INDEX(Hoạt_động,SMALL(IF(Mục_tiêu=$F$2,ROW(Hoạt_động)-MIN(ROW(Hoạt_động))+1),ROWS($B$3:B16)))&CHAR(10),\"\")","v":""},null,{"$f":"IFERROR(INDEX(Hoạt_động,SMALL(IF(Mục_tiêu=$H$2,ROW(Hoạt_động)-MIN(ROW(Hoạt_động))+1),ROWS($B$3:B16)))&CHAR(10),\"\")","v":""}]
[null,{"$f":"IFERROR(INDEX(Hoạt_động,SMALL(IF(Mục_tiêu=$B$2,ROW(Hoạt_động)-MIN(ROW(Hoạt_động))+1),ROWS($B$3:B17)))&\" \"&CHAR(10)&(INDEX(Kết_quả,SMALL(IF(Mục_tiêu=$B$2,ROW(Kết_quả)-MIN(ROW(Kết_quả))+1),ROWS($B$3:B17))))&CHAR(10),\"\")","v":""},null,{"$f":"IFERROR(INDEX(Hoạt_động,SMALL(IF(Mục_tiêu=$D$2,ROW(Hoạt_động)-MIN(ROW(Hoạt_động))+1),ROWS($B$3:B17)))&CHAR(10),\"\")","v":""},null,{"$f":"IFERROR(INDEX(Hoạt_động,SMALL(IF(Mục_tiêu=$F$2,ROW(Hoạt_động)-MIN(ROW(Hoạt_động))+1),ROWS($B$3:B17)))&CHAR(10),\"\")","v":""},null,{"$f":"IFERROR(INDEX(Hoạt_động,SMALL(IF(Mục_tiêu=$H$2,ROW(Hoạt_động)-MIN(ROW(Hoạt_động))+1),ROWS($B$3:B17)))&CHAR(10),\"\")","v":""}]
[null,{"$f":"IFERROR(INDEX(Hoạt_động,SMALL(IF(Mục_tiêu=$B$2,ROW(Hoạt_động)-MIN(ROW(Hoạt_động))+1),ROWS($B$3:B18)))&\" \"&CHAR(10)&(INDEX(Kết_quả,SMALL(IF(Mục_tiêu=$B$2,ROW(Kết_quả)-MIN(ROW(Kết_quả))+1),ROWS($B$3:B18))))&CHAR(10),\"\")","v":""},null,{"$f":"IFERROR(INDEX(Hoạt_động,SMALL(IF(Mục_tiêu=$D$2,ROW(Hoạt_động)-MIN(ROW(Hoạt_động))+1),ROWS($B$3:B18)))&CHAR(10),\"\")","v":""},null,{"$f":"IFERROR(INDEX(Hoạt_động,SMALL(IF(Mục_tiêu=$F$2,ROW(Hoạt_động)-MIN(ROW(Hoạt_động))+1),ROWS($B$3:B18)))&CHAR(10),\"\")","v":""},null,{"$f":"IFERROR(INDEX(Hoạt_động,SMALL(IF(Mục_tiêu=$H$2,ROW(Hoạt_động)-MIN(ROW(Hoạt_động))+1),ROWS($B$3:B18)))&CHAR(10),\"\")","v":""}]
[null,{"$f":"IFERROR(INDEX(Hoạt_động,SMALL(IF(Mục_tiêu=$B$2,ROW(Hoạt_động)-MIN(ROW(Hoạt_động))+1),ROWS($B$3:B19)))&\" \"&CHAR(10)&(INDEX(Kết_quả,SMALL(IF(Mục_tiêu=$B$2,ROW(Kết_quả)-MIN(ROW(Kết_quả))+1),ROWS($B$3:B19))))&CHAR(10),\"\")","v":""},null,{"$f":"IFERROR(INDEX(Hoạt_động,SMALL(IF(Mục_tiêu=$D$2,ROW(Hoạt_động)-MIN(ROW(Hoạt_động))+1),ROWS($B$3:B19)))&CHAR(10),\"\")","v":""},null,{"$f":"IFERROR(INDEX(Hoạt_động,SMALL(IF(Mục_tiêu=$F$2,ROW(Hoạt_động)-MIN(ROW(Hoạt_động))+1),ROWS($B$3:B19)))&CHAR(10),\"\")","v":""},null,{"$f":"IFERROR(INDEX(Hoạt_động,SMALL(IF(Mục_tiêu=$H$2,ROW(Hoạt_động)-MIN(ROW(Hoạt_động))+1),ROWS($B$3:B19)))&CHAR(10),\"\")","v":""}]
[null,{"$f":"IFERROR(INDEX(Hoạt_động,SMALL(IF(Mục_tiêu=$B$2,ROW(Hoạt_động)-MIN(ROW(Hoạt_động))+1),ROWS($B$3:B20)))&\" \"&CHAR(10)&(INDEX(Kết_quả,SMALL(IF(Mục_tiêu=$B$2,ROW(Kết_quả)-MIN(ROW(Kết_quả))+1),ROWS($B$3:B20))))&CHAR(10),\"\")","v":""},null,{"$f":"IFERROR(INDEX(Hoạt_động,SMALL(IF(Mục_tiêu=$D$2,ROW(Hoạt_động)-MIN(ROW(Hoạt_động))+1),ROWS($B$3:B20)))&CHAR(10),\"\")","v":""},null,{"$f":"IFERROR(INDEX(Hoạt_động,SMALL(IF(Mục_tiêu=$F$2,ROW(Hoạt_động)-MIN(ROW(Hoạt_động))+1),ROWS($B$3:B20)))&CHAR(10),\"\")","v":""},null,{"$f":"IFERROR(INDEX(Hoạt_động,SMALL(IF(Mục_tiêu=$H$2,ROW(Hoạt_động)-MIN(ROW(Hoạt_động))+1),ROWS($B$3:B20)))&CHAR(10),\"\")","v":""}]
[null,{"$f":"IFERROR(INDEX(Hoạt_động,SMALL(IF(Mục_tiêu=$B$2,ROW(Hoạt_động)-MIN(ROW(Hoạt_động))+1),ROWS($B$3:B21)))&\" \"&CHAR(10)&(INDEX(Kết_quả,SMALL(IF(Mục_tiêu=$B$2,ROW(Kết_quả)-MIN(ROW(Kết_quả))+1),ROWS($B$3:B21))))&CHAR(10),\"\")","v":""},null,{"$f":"IFERROR(INDEX(Hoạt_động,SMALL(IF(Mục_tiêu=$D$2,ROW(Hoạt_động)-MIN(ROW(Hoạt_động))+1),ROWS($B$3:B21)))&CHAR(10),\"\")","v":""},null,{"$f":"IFERROR(INDEX(Hoạt_động,SMALL(IF(Mục_tiêu=$F$2,ROW(Hoạt_động)-MIN(ROW(Hoạt_động))+1),ROWS($B$3:B21)))&CHAR(10),\"\")","v":""},null,{"$f":"IFERROR(INDEX(Hoạt_động,SMALL(IF(Mục_tiêu=$H$2,ROW(Hoạt_động)-MIN(ROW(Hoạt_động))+1),ROWS($B$3:B21)))&CHAR(10),\"\")","v":""}]
[null,{"$f":"IFERROR(INDEX(Hoạt_động,SMALL(IF(Mục_tiêu=$B$2,ROW(Hoạt_động)-MIN(ROW(Hoạt_động))+1),ROWS($B$3:B22)))&\" \"&CHAR(10)&(INDEX(Kết_quả,SMALL(IF(Mục_tiêu=$B$2,ROW(Kết_quả)-MIN(ROW(Kết_quả))+1),ROWS($B$3:B22))))&CHAR(10),\"\")","v":""},null,{"$f":"IFERROR(INDEX(Hoạt_động,SMALL(IF(Mục_tiêu=$D$2,ROW(Hoạt_động)-MIN(ROW(Hoạt_động))+1),ROWS($B$3:B22)))&CHAR(10),\"\")","v":""},null,{"$f":"IFERROR(INDEX(Hoạt_động,SMALL(IF(Mục_tiêu=$F$2,ROW(Hoạt_động)-MIN(ROW(Hoạt_động))+1),ROWS($B$3:B22)))&CHAR(10),\"\")","v":""},null,{"$f":"IFERROR(INDEX(Hoạt_động,SMALL(IF(Mục_tiêu=$H$2,ROW(Hoạt_động)-MIN(ROW(Hoạt_động))+1),ROWS($B$3:B22)))&CHAR(10),\"\")","v":""}]
[null,{"$f":"IFERROR(INDEX(Hoạt_động,SMALL(IF(Mục_tiêu=$B$2,ROW(Hoạt_động)-MIN(ROW(Hoạt_động))+1),ROWS($B$3:B23)))&\" \"&CHAR(10)&(INDEX(Kết_quả,SMALL(IF(Mục_tiêu=$B$2,ROW(Kết_quả)-MIN(ROW(Kết_quả))+1),ROWS($B$3:B23))))&CHAR(10),\"\")","v":""},null,{"$f":"IFERROR(INDEX(Hoạt_động,SMALL(IF(Mục_tiêu=$D$2,ROW(Hoạt_động)-MIN(ROW(Hoạt_động))+1),ROWS($B$3:B23)))&CHAR(10),\"\")","v":""},null,{"$f":"IFERROR(INDEX(Hoạt_động,SMALL(IF(Mục_tiêu=$F$2,ROW(Hoạt_động)-MIN(ROW(Hoạt_động))+1),ROWS($B$3:B23)))&CHAR(10),\"\")","v":""},null,{"$f":"IFERROR(INDEX(Hoạt_động,SMALL(IF(Mục_tiêu=$H$2,ROW(Hoạt_động)-MIN(ROW(Hoạt_động))+1),ROWS($B$3:B23)))&CHAR(10),\"\")","v":""}]
[null,{"$f":"IFERROR(INDEX(Hoạt_động,SMALL(IF(Mục_tiêu=$B$2,ROW(Hoạt_động)-MIN(ROW(Hoạt_động))+1),ROWS($B$3:B24)))&\" \"&CHAR(10)&(INDEX(Kết_quả,SMALL(IF(Mục_tiêu=$B$2,ROW(Kết_quả)-MIN(ROW(Kết_quả))+1),ROWS($B$3:B24))))&CHAR(10),\"\")","v":""},null,{"$f":"IFERROR(INDEX(Hoạt_động,SMALL(IF(Mục_tiêu=$D$2,ROW(Hoạt_động)-MIN(ROW(Hoạt_động))+1),ROWS($B$3:B24)))&CHAR(10),\"\")","v":""},null,{"$f":"IFERROR(INDEX(Hoạt_động,SMALL(IF(Mục_tiêu=$F$2,ROW(Hoạt_động)-MIN(ROW(Hoạt_động))+1),ROWS($B$3:B24)))&CHAR(10),\"\")","v":""},null,{"$f":"IFERROR(INDEX(Hoạt_động,SMALL(IF(Mục_tiêu=$H$2,ROW(Hoạt_động)-MIN(ROW(Hoạt_động))+1),ROWS($B$3:B24)))&CHAR(10),\"\")","v":""}]
[null,{"$f":"IFERROR(INDEX(Hoạt_động,SMALL(IF(Mục_tiêu=$B$2,ROW(Hoạt_động)-MIN(ROW(Hoạt_động))+1),ROWS($B$3:B25)))&\" \"&CHAR(10)&(INDEX(Kết_quả,SMALL(IF(Mục_tiêu=$B$2,ROW(Kết_quả)-MIN(ROW(Kết_quả))+1),ROWS($B$3:B25))))&CHAR(10),\"\")","v":""},null,{"$f":"IFERROR(INDEX(Hoạt_động,SMALL(IF(Mục_tiêu=$D$2,ROW(Hoạt_động)-MIN(ROW(Hoạt_động))+1),ROWS($B$3:B25)))&CHAR(10),\"\")","v":""},null,{"$f":"IFERROR(INDEX(Hoạt_động,SMALL(IF(Mục_tiêu=$F$2,ROW(Hoạt_động)-MIN(ROW(Hoạt_động))+1),ROWS($B$3:B25)))&CHAR(10),\"\")","v":""},null,{"$f":"IFERROR(INDEX(Hoạt_động,SMALL(IF(Mục_tiêu=$H$2,ROW(Hoạt_động)-MIN(ROW(Hoạt_động))+1),ROWS($B$3:B25)))&CHAR(10),\"\")","v":""}]
[null,{"$f":"IFERROR(INDEX(Hoạt_động,SMALL(IF(Mục_tiêu=$B$2,ROW(Hoạt_động)-MIN(ROW(Hoạt_động))+1),ROWS($B$3:B26)))&\" \"&CHAR(10)&(INDEX(Kết_quả,SMALL(IF(Mục_tiêu=$B$2,ROW(Kết_quả)-MIN(ROW(Kết_quả))+1),ROWS($B$3:B26))))&CHAR(10),\"\")","v":""},null,{"$f":"IFERROR(INDEX(Hoạt_động,SMALL(IF(Mục_tiêu=$D$2,ROW(Hoạt_động)-MIN(ROW(Hoạt_động))+1),ROWS($B$3:B26)))&CHAR(10),\"\")","v":""},null,{"$f":"IFERROR(INDEX(Hoạt_động,SMALL(IF(Mục_tiêu=$F$2,ROW(Hoạt_động)-MIN(ROW(Hoạt_động))+1),ROWS($B$3:B26)))&CHAR(10),\"\")","v":""},null,{"$f":"IFERROR(INDEX(Hoạt_động,SMALL(IF(Mục_tiêu=$H$2,ROW(Hoạt_động)-MIN(ROW(Hoạt_động))+1),ROWS($B$3:B26)))&CHAR(10),\"\")","v":""}]
[null,{"$f":"IFERROR(INDEX(Hoạt_động,SMALL(IF(Mục_tiêu=$B$2,ROW(Hoạt_động)-MIN(ROW(Hoạt_động))+1),ROWS($B$3:B27)))&\" \"&CHAR(10)&(INDEX(Kết_quả,SMALL(IF(Mục_tiêu=$B$2,ROW(Kết_quả)-MIN(ROW(Kết_quả))+1),ROWS($B$3:B27))))&CHAR(10),\"\")","v":""},null,{"$f":"IFERROR(INDEX(Hoạt_động,SMALL(IF(Mục_tiêu=$D$2,ROW(Hoạt_động)-MIN(ROW(Hoạt_động))+1),ROWS($B$3:B27)))&CHAR(10),\"\")","v":""},null,{"$f":"IFERROR(INDEX(Hoạt_động,SMALL(IF(Mục_tiêu=$F$2,ROW(Hoạt_động)-MIN(ROW(Hoạt_động))+1),ROWS($B$3:B27)))&CHAR(10),\"\")","v":""},null,{"$f":"IFERROR(INDEX(Hoạt_động,SMALL(IF(Mục_tiêu=$H$2,ROW(Hoạt_động)-MIN(ROW(Hoạt_động))+1),ROWS($B$3:B27)))&CHAR(10),\"\")","v":""}]
[null,{"$f":"IFERROR(INDEX(Hoạt_động,SMALL(IF(Mục_tiêu=$B$2,ROW(Hoạt_động)-MIN(ROW(Hoạt_động))+1),ROWS($B$3:B28)))&\" \"&CHAR(10)&(INDEX(Kết_quả,SMALL(IF(Mục_tiêu=$B$2,ROW(Kết_quả)-MIN(ROW(Kết_quả))+1),ROWS($B$3:B28))))&CHAR(10),\"\")","v":""},null,{"$f":"IFERROR(INDEX(Hoạt_động,SMALL(IF(Mục_tiêu=$D$2,ROW(Hoạt_động)-MIN(ROW(Hoạt_động))+1),ROWS($B$3:B28)))&CHAR(10),\"\")","v":""},null,{"$f":"IFERROR(INDEX(Hoạt_động,SMALL(IF(Mục_tiêu=$F$2,ROW(Hoạt_động)-MIN(ROW(Hoạt_động))+1),ROWS($B$3:B28)))&CHAR(10),\"\")","v":""},null,{"$f":"IFERROR(INDEX(Hoạt_động,SMALL(IF(Mục_tiêu=$H$2,ROW(Hoạt_động)-MIN(ROW(Hoạt_động))+1),ROWS($B$3:B28)))&CHAR(10),\"\")","v":""}]
[null,{"$f":"IFERROR(INDEX(Hoạt_động,SMALL(IF(Mục_tiêu=$B$2,ROW(Hoạt_động)-MIN(ROW(Hoạt_động))+1),ROWS($B$3:B29)))&\" \"&CHAR(10)&(INDEX(Kết_quả,SMALL(IF(Mục_tiêu=$B$2,ROW(Kết_quả)-MIN(ROW(Kết_quả))+1),ROWS($B$3:B29))))&CHAR(10),\"\")","v":""},null,{"$f":"IFERROR(INDEX(Hoạt_động,SMALL(IF(Mục_tiêu=$D$2,ROW(Hoạt_động)-MIN(ROW(Hoạt_động))+1),ROWS($B$3:B29)))&CHAR(10),\"\")","v":""},null,{"$f":"IFERROR(INDEX(Hoạt_động,SMALL(IF(Mục_tiêu=$F$2,ROW(Hoạt_động)-MIN(ROW(Hoạt_động))+1),ROWS($B$3:B29)))&CHAR(10),\"\")","v":""},null,{"$f":"IFERROR(INDEX(Hoạt_động,SMALL(IF(Mục_tiêu=$H$2,ROW(Hoạt_động)-MIN(ROW(Hoạt_động))+1),ROWS($B$3:B29)))&CHAR(10),\"\")","v":""}]
[null,{"$f":"IFERROR(INDEX(Hoạt_động,SMALL(IF(Mục_tiêu=$B$2,ROW(Hoạt_động)-MIN(ROW(Hoạt_động))+1),ROWS($B$3:B30)))&\" \"&CHAR(10)&(INDEX(Kết_quả,SMALL(IF(Mục_tiêu=$B$2,ROW(Kết_quả)-MIN(ROW(Kết_quả))+1),ROWS($B$3:B30))))&CHAR(10),\"\")","v":""},null,{"$f":"IFERROR(INDEX(Hoạt_động,SMALL(IF(Mục_tiêu=$D$2,ROW(Hoạt_động)-MIN(ROW(Hoạt_động))+1),ROWS($B$3:B30)))&CHAR(10),\"\")","v":""},null,{"$f":"IFERROR(INDEX(Hoạt_động,SMALL(IF(Mục_tiêu=$F$2,ROW(Hoạt_động)-MIN(ROW(Hoạt_động))+1),ROWS($B$3:B30)))&CHAR(10),\"\")","v":""},null,{"$f":"IFERROR(INDEX(Hoạt_động,SMALL(IF(Mục_tiêu=$H$2,ROW(Hoạt_động)-MIN(ROW(Hoạt_động))+1),ROWS($B$3:B30)))&CHAR(10),\"\")","v":""}]
[null,{"$f":"IFERROR(INDEX(Hoạt_động,SMALL(IF(Mục_tiêu=$B$2,ROW(Hoạt_động)-MIN(ROW(Hoạt_động))+1),ROWS($B$3:B31)))&\" \"&CHAR(10)&(INDEX(Kết_quả,SMALL(IF(Mục_tiêu=$B$2,ROW(Kết_quả)-MIN(ROW(Kết_quả))+1),ROWS($B$3:B31))))&CHAR(10),\"\")","v":""},null,{"$f":"IFERROR(INDEX(Hoạt_động,SMALL(IF(Mục_tiêu=$D$2,ROW(Hoạt_động)-MIN(ROW(Hoạt_động))+1),ROWS($B$3:B31)))&CHAR(10),\"\")","v":""},null,{"$f":"IFERROR(INDEX(Hoạt_động,SMALL(IF(Mục_tiêu=$F$2,ROW(Hoạt_động)-MIN(ROW(Hoạt_động))+1),ROWS($B$3:B31)))&CHAR(10),\"\")","v":""},null,{"$f":"IFERROR(INDEX(Hoạt_động,SMALL(IF(Mục_tiêu=$H$2,ROW(Hoạt_động)-MIN(ROW(Hoạt_động))+1),ROWS($B$3:B31)))&CHAR(10),\"\")","v":""}]
[null,{"$f":"IFERROR(INDEX(Hoạt_động,SMALL(IF(Mục_tiêu=$B$2,ROW(Hoạt_động)-MIN(ROW(Hoạt_động))+1),ROWS($B$3:B32)))&\" \"&CHAR(10)&(INDEX(Kết_quả,SMALL(IF(Mục_tiêu=$B$2,ROW(Kết_quả)-MIN(ROW(Kết_quả))+1),ROWS($B$3:B32))))&CHAR(10),\"\")","v":""},null,{"$f":"IFERROR(INDEX(Hoạt_động,SMALL(IF(Mục_tiêu=$D$2,ROW(Hoạt_động)-MIN(ROW(Hoạt_động))+1),ROWS($B$3:B32)))&CHAR(10),\"\")","v":""},null,{"$f":"IFERROR(INDEX(Hoạt_động,SMALL(IF(Mục_tiêu=$F$2,ROW(Hoạt_động)-MIN(ROW(Hoạt_động))+1),ROWS($B$3:B32)))&CHAR(10),\"\")","v":""},null,{"$f":"IFERROR(INDEX(Hoạt_động,SMALL(IF(Mục_tiêu=$H$2,ROW(Hoạt_động)-MIN(ROW(Hoạt_động))+1),ROWS($B$3:B32)))&CHAR(10),\"\")","v":""}]
[null,{"$f":"IFERROR(INDEX(Hoạt_động,SMALL(IF(Mục_tiêu=$B$2,ROW(Hoạt_động)-MIN(ROW(Hoạt_động))+1),ROWS($B$3:B33)))&\" \"&CHAR(10)&(INDEX(Kết_quả,SMALL(IF(Mục_tiêu=$B$2,ROW(Kết_quả)-MIN(ROW(Kết_quả))+1),ROWS($B$3:B33))))&CHAR(10),\"\")","v":""},null,{"$f":"IFERROR(INDEX(Hoạt_động,SMALL(IF(Mục_tiêu=$D$2,ROW(Hoạt_động)-MIN(ROW(Hoạt_động))+1),ROWS($B$3:B33)))&CHAR(10),\"\")","v":""},null,{"$f":"IFERROR(INDEX(Hoạt_động,SMALL(IF(Mục_tiêu=$F$2,ROW(Hoạt_động)-MIN(ROW(Hoạt_động))+1),ROWS($B$3:B33)))&CHAR(10),\"\")","v":""},null,{"$f":"IFERROR(INDEX(Hoạt_động,SMALL(IF(Mục_tiêu=$H$2,ROW(Hoạt_động)-MIN(ROW(Hoạt_động))+1),ROWS($B$3:B33)))&CHAR(10),\"\")","v":""}]
[null,{"$f":"IFERROR(INDEX(Hoạt_động,SMALL(IF(Mục_tiêu=$B$2,ROW(Hoạt_động)-MIN(ROW(Hoạt_động))+1),ROWS($B$3:B34)))&\" \"&CHAR(10)&(INDEX(Kết_quả,SMALL(IF(Mục_tiêu=$B$2,ROW(Kết_quả)-MIN(ROW(Kết_quả))+1),ROWS($B$3:B34))))&CHAR(10),\"\")","v":""},null,{"$f":"IFERROR(INDEX(Hoạt_động,SMALL(IF(Mục_tiêu=$D$2,ROW(Hoạt_động)-MIN(ROW(Hoạt_động))+1),ROWS($B$3:B34)))&CHAR(10),\"\")","v":""},null,{"$f":"IFERROR(INDEX(Hoạt_động,SMALL(IF(Mục_tiêu=$F$2,ROW(Hoạt_động)-MIN(ROW(Hoạt_động))+1),ROWS($B$3:B34)))&CHAR(10),\"\")","v":""},null,{"$f":"IFERROR(INDEX(Hoạt_động,SMALL(IF(Mục_tiêu=$H$2,ROW(Hoạt_động)-MIN(ROW(Hoạt_động))+1),ROWS($B$3:B34)))&CHAR(10),\"\")","v":""}]
[null,{"$f":"IFERROR(INDEX(Hoạt_động,SMALL(IF(Mục_tiêu=$B$2,ROW(Hoạt_động)-MIN(ROW(Hoạt_động))+1),ROWS($B$3:B35)))&\" \"&CHAR(10)&(INDEX(Kết_quả,SMALL(IF(Mục_tiêu=$B$2,ROW(Kết_quả)-MIN(ROW(Kết_quả))+1),ROWS($B$3:B35))))&CHAR(10),\"\")","v":""},null,{"$f":"IFERROR(INDEX(Hoạt_động,SMALL(IF(Mục_tiêu=$D$2,ROW(Hoạt_động)-MIN(ROW(Hoạt_động))+1),ROWS($B$3:B35)))&CHAR(10),\"\")","v":""},null,{"$f":"IFERROR(INDEX(Hoạt_động,SMALL(IF(Mục_tiêu=$F$2,ROW(Hoạt_động)-MIN(ROW(Hoạt_động))+1),ROWS($B$3:B35)))&CHAR(10),\"\")","v":""},null,{"$f":"IFERROR(INDEX(Hoạt_động,SMALL(IF(Mục_tiêu=$H$2,ROW(Hoạt_động)-MIN(ROW(Hoạt_động))+1),ROWS($B$3:B35)))&CHAR(10),\"\")","v":""}]
[null,{"$f":"IFERROR(INDEX(Hoạt_động,SMALL(IF(Mục_tiêu=$B$2,ROW(Hoạt_động)-MIN(ROW(Hoạt_động))+1),ROWS($B$3:B36)))&\" \"&CHAR(10)&(INDEX(Kết_quả,SMALL(IF(Mục_tiêu=$B$2,ROW(Kết_quả)-MIN(ROW(Kết_quả))+1),ROWS($B$3:B36))))&CHAR(10),\"\")","v":""},null,{"$f":"IFERROR(INDEX(Hoạt_động,SMALL(IF(Mục_tiêu=$D$2,ROW(Hoạt_động)-MIN(ROW(Hoạt_động))+1),ROWS($B$3:B36)))&CHAR(10),\"\")","v":""},null,{"$f":"IFERROR(INDEX(Hoạt_động,SMALL(IF(Mục_tiêu=$F$2,ROW(Hoạt_động)-MIN(ROW(Hoạt_động))+1),ROWS($B$3:B36)))&CHAR(10),\"\")","v":""},null,{"$f":"IFERROR(INDEX(Hoạt_động,SMALL(IF(Mục_tiêu=$H$2,ROW(Hoạt_động)-MIN(ROW(Hoạt_động))+1),ROWS($B$3:B36)))&CHAR(10),\"\")","v":""}]
[null,{"$f":"IFERROR(INDEX(Hoạt_động,SMALL(IF(Mục_tiêu=$B$2,ROW(Hoạt_động)-MIN(ROW(Hoạt_động))+1),ROWS($B$3:B37)))&\" \"&CHAR(10)&(INDEX(Kết_quả,SMALL(IF(Mục_tiêu=$B$2,ROW(Kết_quả)-MIN(ROW(Kết_quả))+1),ROWS($B$3:B37))))&CHAR(10),\"\")","v":""},null,{"$f":"IFERROR(INDEX(Hoạt_động,SMALL(IF(Mục_tiêu=$D$2,ROW(Hoạt_động)-MIN(ROW(Hoạt_động))+1),ROWS($B$3:B37)))&CHAR(10),\"\")","v":""},null,{"$f":"IFERROR(INDEX(Hoạt_động,SMALL(IF(Mục_tiêu=$F$2,ROW(Hoạt_động)-MIN(ROW(Hoạt_động))+1),ROWS($B$3:B37)))&CHAR(10),\"\")","v":""},null,{"$f":"IFERROR(INDEX(Hoạt_động,SMALL(IF(Mục_tiêu=$H$2,ROW(Hoạt_động)-MIN(ROW(Hoạt_động))+1),ROWS($B$3:B37)))&CHAR(10),\"\")","v":""}]
[null,{"$f":"IFERROR(INDEX(Hoạt_động,SMALL(IF(Mục_tiêu=$B$2,ROW(Hoạt_động)-MIN(ROW(Hoạt_động))+1),ROWS($B$3:B38)))&\" \"&CHAR(10)&(INDEX(Kết_quả,SMALL(IF(Mục_tiêu=$B$2,ROW(Kết_quả)-MIN(ROW(Kết_quả))+1),ROWS($B$3:B38))))&CHAR(10),\"\")","v":""},null,{"$f":"IFERROR(INDEX(Hoạt_động,SMALL(IF(Mục_tiêu=$D$2,ROW(Hoạt_động)-MIN(ROW(Hoạt_động))+1),ROWS($B$3:B38)))&CHAR(10),\"\")","v":""},null,{"$f":"IFERROR(INDEX(Hoạt_động,SMALL(IF(Mục_tiêu=$F$2,ROW(Hoạt_động)-MIN(ROW(Hoạt_động))+1),ROWS($B$3:B38)))&CHAR(10),\"\")","v":""},null,{"$f":"IFERROR(INDEX(Hoạt_động,SMALL(IF(Mục_tiêu=$H$2,ROW(Hoạt_động)-MIN(ROW(Hoạt_động))+1),ROWS($B$3:B38)))&CHAR(10),\"\")","v":""}]
[null,{"$f":"IFERROR(INDEX(Hoạt_động,SMALL(IF(Mục_tiêu=$B$2,ROW(Hoạt_động)-MIN(ROW(Hoạt_động))+1),ROWS($B$3:B39)))&\" \"&CHAR(10)&(INDEX(Kết_quả,SMALL(IF(Mục_tiêu=$B$2,ROW(Kết_quả)-MIN(ROW(Kết_quả))+1),ROWS($B$3:B39))))&CHAR(10),\"\")","v":""},null,{"$f":"IFERROR(INDEX(Hoạt_động,SMALL(IF(Mục_tiêu=$D$2,ROW(Hoạt_động)-MIN(ROW(Hoạt_động))+1),ROWS($B$3:B39)))&CHAR(10),\"\")","v":""},null,{"$f":"IFERROR(INDEX(Hoạt_động,SMALL(IF(Mục_tiêu=$F$2,ROW(Hoạt_động)-MIN(ROW(Hoạt_động))+1),ROWS($B$3:B39)))&CHAR(10),\"\")","v":""},null,{"$f":"IFERROR(INDEX(Hoạt_động,SMALL(IF(Mục_tiêu=$H$2,ROW(Hoạt_động)-MIN(ROW(Hoạt_động))+1),ROWS($B$3:B39)))&CHAR(10),\"\")","v":""}]
[null,{"$f":"IFERROR(INDEX(Hoạt_động,SMALL(IF(Mục_tiêu=$B$2,ROW(Hoạt_động)-MIN(ROW(Hoạt_động))+1),ROWS($B$3:B40)))&\" \"&CHAR(10)&(INDEX(Kết_quả,SMALL(IF(Mục_tiêu=$B$2,ROW(Kết_quả)-MIN(ROW(Kết_quả))+1),ROWS($B$3:B40))))&CHAR(10),\"\")","v":""},null,{"$f":"IFERROR(INDEX(Hoạt_động,SMALL(IF(Mục_tiêu=$D$2,ROW(Hoạt_động)-MIN(ROW(Hoạt_động))+1),ROWS($B$3:B40)))&CHAR(10),\"\")","v":""},null,{"$f":"IFERROR(INDEX(Hoạt_động,SMALL(IF(Mục_tiêu=$F$2,ROW(Hoạt_động)-MIN(ROW(Hoạt_động))+1),ROWS($B$3:B40)))&CHAR(10),\"\")","v":""},null,{"$f":"IFERROR(INDEX(Hoạt_động,SMALL(IF(Mục_tiêu=$H$2,ROW(Hoạt_động)-MIN(ROW(Hoạt_động))+1),ROWS($B$3:B40)))&CHAR(10),\"\")","v":""}]
[null,{"$f":"IFERROR(INDEX(Hoạt_động,SMALL(IF(Mục_tiêu=$B$2,ROW(Hoạt_động)-MIN(ROW(Hoạt_động))+1),ROWS($B$3:B41)))&\" \"&CHAR(10)&(INDEX(Kết_quả,SMALL(IF(Mục_tiêu=$B$2,ROW(Kết_quả)-MIN(ROW(Kết_quả))+1),ROWS($B$3:B41))))&CHAR(10),\"\")","v":""},null,{"$f":"IFERROR(INDEX(Hoạt_động,SMALL(IF(Mục_tiêu=$D$2,ROW(Hoạt_động)-MIN(ROW(Hoạt_động))+1),ROWS($B$3:B41)))&CHAR(10),\"\")","v":""},null,{"$f":"IFERROR(INDEX(Hoạt_động,SMALL(IF(Mục_tiêu=$F$2,ROW(Hoạt_động)-MIN(ROW(Hoạt_động))+1),ROWS($B$3:B41)))&CHAR(10),\"\")","v":""},null,{"$f":"IFERROR(INDEX(Hoạt_động,SMALL(IF(Mục_tiêu=$H$2,ROW(Hoạt_động)-MIN(ROW(Hoạt_động))+1),ROWS($B$3:B41)))&CHAR(10),\"\")","v":""}]
[null,{"$f":"IFERROR(INDEX(Hoạt_động,SMALL(IF(Mục_tiêu=$B$2,ROW(Hoạt_động)-MIN(ROW(Hoạt_động))+1),ROWS($B$3:B42)))&\" \"&CHAR(10)&(INDEX(Kết_quả,SMALL(IF(Mục_tiêu=$B$2,ROW(Kết_quả)-MIN(ROW(Kết_quả))+1),ROWS($B$3:B42))))&CHAR(10),\"\")","v":""},null,{"$f":"IFERROR(INDEX(Hoạt_động,SMALL(IF(Mục_tiêu=$D$2,ROW(Hoạt_động)-MIN(ROW(Hoạt_động))+1),ROWS($B$3:B42)))&CHAR(10),\"\")","v":""},null,{"$f":"IFERROR(INDEX(Hoạt_động,SMALL(IF(Mục_tiêu=$F$2,ROW(Hoạt_động)-MIN(ROW(Hoạt_động))+1),ROWS($B$3:B42)))&CHAR(10),\"\")","v":""},null,{"$f":"IFERROR(INDEX(Hoạt_động,SMALL(IF(Mục_tiêu=$H$2,ROW(Hoạt_động)-MIN(ROW(Hoạt_động))+1),ROWS($B$3:B42)))&CHAR(10),\"\")","v":""}]
[null,{"$f":"IFERROR(INDEX(Hoạt_động,SMALL(IF(Mục_tiêu=$B$2,ROW(Hoạt_động)-MIN(ROW(Hoạt_động))+1),ROWS($B$3:B43)))&\" \"&CHAR(10)&(INDEX(Kết_quả,SMALL(IF(Mục_tiêu=$B$2,ROW(Kết_quả)-MIN(ROW(Kết_quả))+1),ROWS($B$3:B43))))&CHAR(10),\"\")","v":""},null,{"$f":"IFERROR(INDEX(Hoạt_động,SMALL(IF(Mục_tiêu=$D$2,ROW(Hoạt_động)-MIN(ROW(Hoạt_động))+1),ROWS($B$3:B43)))&CHAR(10),\"\")","v":""},null,{"$f":"IFERROR(INDEX(Hoạt_động,SMALL(IF(Mục_tiêu=$F$2,ROW(Hoạt_động)-MIN(ROW(Hoạt_động))+1),ROWS($B$3:B43)))&CHAR(10),\"\")","v":""},null,{"$f":"IFERROR(INDEX(Hoạt_động,SMALL(IF(Mục_tiêu=$H$2,ROW(Hoạt_động)-MIN(ROW(Hoạt_động))+1),ROWS($B$3:B43)))&CHAR(10),\"\")","v":""}]
[null,{"$f":"IFERROR(INDEX(Hoạt_động,SMALL(IF(Mục_tiêu=$B$2,ROW(Hoạt_động)-MIN(ROW(Hoạt_động))+1),ROWS($B$3:B44)))&\" \"&CHAR(10)&(INDEX(Kết_quả,SMALL(IF(Mục_tiêu=$B$2,ROW(Kết_quả)-MIN(ROW(Kết_quả))+1),ROWS($B$3:B44))))&CHAR(10),\"\")","v":""},null,{"$f":"IFERROR(INDEX(Hoạt_động,SMALL(IF(Mục_tiêu=$D$2,ROW(Hoạt_động)-MIN(ROW(Hoạt_động))+1),ROWS($B$3:B44)))&CHAR(10),\"\")","v":""},null,{"$f":"IFERROR(INDEX(Hoạt_động,SMALL(IF(Mục_tiêu=$F$2,ROW(Hoạt_động)-MIN(ROW(Hoạt_động))+1),ROWS($B$3:B44)))&CHAR(10),\"\")","v":""},null,{"$f":"IFERROR(INDEX(Hoạt_động,SMALL(IF(Mục_tiêu=$H$2,ROW(Hoạt_động)-MIN(ROW(Hoạt_động))+1),ROWS($B$3:B44)))&CHAR(10),\"\")","v":""}]
[null,{"$f":"IFERROR(INDEX(Hoạt_động,SMALL(IF(Mục_tiêu=$B$2,ROW(Hoạt_động)-MIN(ROW(Hoạt_động))+1),ROWS($B$3:B45)))&\" \"&CHAR(10)&(INDEX(Kết_quả,SMALL(IF(Mục_tiêu=$B$2,ROW(Kết_quả)-MIN(ROW(Kết_quả))+1),ROWS($B$3:B45))))&CHAR(10),\"\")","v":""},null,{"$f":"IFERROR(INDEX(Hoạt_động,SMALL(IF(Mục_tiêu=$D$2,ROW(Hoạt_động)-MIN(ROW(Hoạt_động))+1),ROWS($B$3:B45)))&CHAR(10),\"\")","v":""},null,{"$f":"IFERROR(INDEX(Hoạt_động,SMALL(IF(Mục_tiêu=$F$2,ROW(Hoạt_động)-MIN(ROW(Hoạt_động))+1),ROWS($B$3:B45)))&CHAR(10),\"\")","v":""},null,{"$f":"IFERROR(INDEX(Hoạt_động,SMALL(IF(Mục_tiêu=$H$2,ROW(Hoạt_động)-MIN(ROW(Hoạt_động))+1),ROWS($B$3:B45)))&CHAR(10),\"\")","v":""}]
[null,{"$f":"IFERROR(INDEX(Hoạt_động,SMALL(IF(Mục_tiêu=$B$2,ROW(Hoạt_động)-MIN(ROW(Hoạt_động))+1),ROWS($B$3:B46)))&\" \"&CHAR(10)&(INDEX(Kết_quả,SMALL(IF(Mục_tiêu=$B$2,ROW(Kết_quả)-MIN(ROW(Kết_quả))+1),ROWS($B$3:B46))))&CHAR(10),\"\")","v":""},null,{"$f":"IFERROR(INDEX(Hoạt_động,SMALL(IF(Mục_tiêu=$D$2,ROW(Hoạt_động)-MIN(ROW(Hoạt_động))+1),ROWS($B$3:B46)))&CHAR(10),\"\")","v":""},null,{"$f":"IFERROR(INDEX(Hoạt_động,SMALL(IF(Mục_tiêu=$F$2,ROW(Hoạt_động)-MIN(ROW(Hoạt_động))+1),ROWS($B$3:B46)))&CHAR(10),\"\")","v":""},null,{"$f":"IFERROR(INDEX(Hoạt_động,SMALL(IF(Mục_tiêu=$H$2,ROW(Hoạt_động)-MIN(ROW(Hoạt_động))+1),ROWS($B$3:B46)))&CHAR(10),\"\")","v":""}]
[null,{"$f":"IFERROR(INDEX(Hoạt_động,SMALL(IF(Mục_tiêu=$B$2,ROW(Hoạt_động)-MIN(ROW(Hoạt_động))+1),ROWS($B$3:B47)))&\" \"&CHAR(10)&(INDEX(Kết_quả,SMALL(IF(Mục_tiêu=$B$2,ROW(Kết_quả)-MIN(ROW(Kết_quả))+1),ROWS($B$3:B47))))&CHAR(10),\"\")","v":""},null,{"$f":"IFERROR(INDEX(Hoạt_động,SMALL(IF(Mục_tiêu=$D$2,ROW(Hoạt_động)-MIN(ROW(Hoạt_động))+1),ROWS($B$3:B47)))&CHAR(10),\"\")","v":""},null,{"$f":"IFERROR(INDEX(Hoạt_động,SMALL(IF(Mục_tiêu=$F$2,ROW(Hoạt_động)-MIN(ROW(Hoạt_động))+1),ROWS($B$3:B47)))&CHAR(10),\"\")","v":""},null,{"$f":"IFERROR(INDEX(Hoạt_động,SMALL(IF(Mục_tiêu=$H$2,ROW(Hoạt_động)-MIN(ROW(Hoạt_động))+1),ROWS($B$3:B47)))&CHAR(10),\"\")","v":""}]
[null,{"$f":"IFERROR(INDEX(Hoạt_động,SMALL(IF(Mục_tiêu=$B$2,ROW(Hoạt_động)-MIN(ROW(Hoạt_động))+1),ROWS($B$3:B48)))&\" \"&CHAR(10)&(INDEX(Kết_quả,SMALL(IF(Mục_tiêu=$B$2,ROW(Kết_quả)-MIN(ROW(Kết_quả))+1),ROWS($B$3:B48))))&CHAR(10),\"\")","v":""},null,{"$f":"IFERROR(INDEX(Hoạt_động,SMALL(IF(Mục_tiêu=$D$2,ROW(Hoạt_động)-MIN(ROW(Hoạt_động))+1),ROWS($B$3:B48)))&CHAR(10),\"\")","v":""},null,{"$f":"IFERROR(INDEX(Hoạt_động,SMALL(IF(Mục_tiêu=$F$2,ROW(Hoạt_động)-MIN(ROW(Hoạt_động))+1),ROWS($B$3:B48)))&CHAR(10),\"\")","v":""},null,{"$f":"IFERROR(INDEX(Hoạt_động,SMALL(IF(Mục_tiêu=$H$2,ROW(Hoạt_động)-MIN(ROW(Hoạt_động))+1),ROWS($B$3:B48)))&CHAR(10),\"\")","v":""}]
[null,{"$f":"IFERROR(INDEX(Hoạt_động,SMALL(IF(Mục_tiêu=$B$2,ROW(Hoạt_động)-MIN(ROW(Hoạt_động))+1),ROWS($B$3:B49)))&\" \"&CHAR(10)&(INDEX(Kết_quả,SMALL(IF(Mục_tiêu=$B$2,ROW(Kết_quả)-MIN(ROW(Kết_quả))+1),ROWS($B$3:B49))))&CHAR(10),\"\")","v":""},null,{"$f":"IFERROR(INDEX(Hoạt_động,SMALL(IF(Mục_tiêu=$D$2,ROW(Hoạt_động)-MIN(ROW(Hoạt_động))+1),ROWS($B$3:B49)))&CHAR(10),\"\")","v":""},null,{"$f":"IFERROR(INDEX(Hoạt_động,SMALL(IF(Mục_tiêu=$F$2,ROW(Hoạt_động)-MIN(ROW(Hoạt_động))+1),ROWS($B$3:B49)))&CHAR(10),\"\")","v":""},null,{"$f":"IFERROR(INDEX(Hoạt_động,SMALL(IF(Mục_tiêu=$H$2,ROW(Hoạt_động)-MIN(ROW(Hoạt_động))+1),ROWS($B$3:B49)))&CHAR(10),\"\")","v":""}]
[null,{"$f":"IFERROR(INDEX(Hoạt_động,SMALL(IF(Mục_tiêu=$B$2,ROW(Hoạt_động)-MIN(ROW(Hoạt_động))+1),ROWS($B$3:B50)))&\" \"&CHAR(10)&(INDEX(Kết_quả,SMALL(IF(Mục_tiêu=$B$2,ROW(Kết_quả)-MIN(ROW(Kết_quả))+1),ROWS($B$3:B50))))&CHAR(10),\"\")","v":""},null,{"$f":"IFERROR(INDEX(Hoạt_động,SMALL(IF(Mục_tiêu=$D$2,ROW(Hoạt_động)-MIN(ROW(Hoạt_động))+1),ROWS($B$3:B50)))&CHAR(10),\"\")","v":""},null,{"$f":"IFERROR(INDEX(Hoạt_động,SMALL(IF(Mục_tiêu=$F$2,ROW(Hoạt_động)-MIN(ROW(Hoạt_động))+1),ROWS($B$3:B50)))&CHAR(10),\"\")","v":""},null,{"$f":"IFERROR(INDEX(Hoạt_động,SMALL(IF(Mục_tiêu=$H$2,ROW(Hoạt_động)-MIN(ROW(Hoạt_động))+1),ROWS($B$3:B50)))&CHAR(10),\"\")","v":""}]
[null,{"$f":"IFERROR(INDEX(Hoạt_động,SMALL(IF(Mục_tiêu=$B$2,ROW(Hoạt_động)-MIN(ROW(Hoạt_động))+1),ROWS($B$3:B51)))&\" \"&CHAR(10)&(INDEX(Kết_quả,SMALL(IF(Mục_tiêu=$B$2,ROW(Kết_quả)-MIN(ROW(Kết_quả))+1),ROWS($B$3:B51))))&CHAR(10),\"\")","v":""},null,{"$f":"IFERROR(INDEX(Hoạt_động,SMALL(IF(Mục_tiêu=$D$2,ROW(Hoạt_động)-MIN(ROW(Hoạt_động))+1),ROWS($B$3:B51)))&CHAR(10),\"\")","v":""},null,{"$f":"IFERROR(INDEX(Hoạt_động,SMALL(IF(Mục_tiêu=$F$2,ROW(Hoạt_động)-MIN(ROW(Hoạt_động))+1),ROWS($B$3:B51)))&CHAR(10),\"\")","v":""},null,{"$f":"IFERROR(INDEX(Hoạt_động,SMALL(IF(Mục_tiêu=$H$2,ROW(Hoạt_động)-MIN(ROW(Hoạt_động))+1),ROWS($B$3:B51)))&CHAR(10),\"\")","v":""}]
[null,{"$f":"IFERROR(INDEX(Hoạt_động,SMALL(IF(Mục_tiêu=$B$2,ROW(Hoạt_động)-MIN(ROW(Hoạt_động))+1),ROWS($B$3:B52)))&\" \"&CHAR(10)&(INDEX(Kết_quả,SMALL(IF(Mục_tiêu=$B$2,ROW(Kết_quả)-MIN(ROW(Kết_quả))+1),ROWS($B$3:B52))))&CHAR(10),\"\")","v":""},null,{"$f":"IFERROR(INDEX(Hoạt_động,SMALL(IF(Mục_tiêu=$D$2,ROW(Hoạt_động)-MIN(ROW(Hoạt_động))+1),ROWS($B$3:B52)))&CHAR(10),\"\")","v":""},null,{"$f":"IFERROR(INDEX(Hoạt_động,SMALL(IF(Mục_tiêu=$F$2,ROW(Hoạt_động)-MIN(ROW(Hoạt_động))+1),ROWS($B$3:B52)))&CHAR(10),\"\")","v":""},null,{"$f":"IFERROR(INDEX(Hoạt_động,SMALL(IF(Mục_tiêu=$H$2,ROW(Hoạt_động)-MIN(ROW(Hoạt_động))+1),ROWS($B$3:B52)))&CHAR(10),\"\")","v":""}]
[null,{"$f":"IFERROR(INDEX(Hoạt_động,SMALL(IF(Mục_tiêu=$B$2,ROW(Hoạt_động)-MIN(ROW(Hoạt_động))+1),ROWS($B$3:B53)))&\" \"&CHAR(10)&(INDEX(Kết_quả,SMALL(IF(Mục_tiêu=$B$2,ROW(Kết_quả)-MIN(ROW(Kết_quả))+1),ROWS($B$3:B53))))&CHAR(10),\"\")","v":""},null,{"$f":"IFERROR(INDEX(Hoạt_động,SMALL(IF(Mục_tiêu=$D$2,ROW(Hoạt_động)-MIN(ROW(Hoạt_động))+1),ROWS($B$3:B53)))&CHAR(10),\"\")","v":""},null,{"$f":"IFERROR(INDEX(Hoạt_động,SMALL(IF(Mục_tiêu=$F$2,ROW(Hoạt_động)-MIN(ROW(Hoạt_động))+1),ROWS($B$3:B53)))&CHAR(10),\"\")","v":""},null,{"$f":"IFERROR(INDEX(Hoạt_động,SMALL(IF(Mục_tiêu=$H$2,ROW(Hoạt_động)-MIN(ROW(Hoạt_động))+1),ROWS($B$3:B53)))&CHAR(10),\"\")","v":""}]
[null,{"$f":"IFERROR(INDEX(Hoạt_động,SMALL(IF(Mục_tiêu=$B$2,ROW(Hoạt_động)-MIN(ROW(Hoạt_động))+1),ROWS($B$3:B54)))&\" \"&CHAR(10)&(INDEX(Kết_quả,SMALL(IF(Mục_tiêu=$B$2,ROW(Kết_quả)-MIN(ROW(Kết_quả))+1),ROWS($B$3:B54))))&CHAR(10),\"\")","v":""},null,{"$f":"IFERROR(INDEX(Hoạt_động,SMALL(IF(Mục_tiêu=$D$2,ROW(Hoạt_động)-MIN(ROW(Hoạt_động))+1),ROWS($B$3:B54)))&CHAR(10),\"\")","v":""},null,{"$f":"IFERROR(INDEX(Hoạt_động,SMALL(IF(Mục_tiêu=$F$2,ROW(Hoạt_động)-MIN(ROW(Hoạt_động))+1),ROWS($B$3:B54)))&CHAR(10),\"\")","v":""},null,{"$f":"IFERROR(INDEX(Hoạt_động,SMALL(IF(Mục_tiêu=$H$2,ROW(Hoạt_động)-MIN(ROW(Hoạt_động))+1),ROWS($B$3:B54)))&CHAR(10),\"\")","v":""}]
[null,{"$f":"IFERROR(INDEX(Hoạt_động,SMALL(IF(Mục_tiêu=$B$2,ROW(Hoạt_động)-MIN(ROW(Hoạt_động))+1),ROWS($B$3:B55)))&\" \"&CHAR(10)&(INDEX(Kết_quả,SMALL(IF(Mục_tiêu=$B$2,ROW(Kết_quả)-MIN(ROW(Kết_quả))+1),ROWS($B$3:B55))))&CHAR(10),\"\")","v":""},null,{"$f":"IFERROR(INDEX(Hoạt_động,SMALL(IF(Mục_tiêu=$D$2,ROW(Hoạt_động)-MIN(ROW(Hoạt_động))+1),ROWS($B$3:B55)))&CHAR(10),\"\")","v":""},null,{"$f":"IFERROR(INDEX(Hoạt_động,SMALL(IF(Mục_tiêu=$F$2,ROW(Hoạt_động)-MIN(ROW(Hoạt_động))+1),ROWS($B$3:B55)))&CHAR(10),\"\")","v":""},null,{"$f":"IFERROR(INDEX(Hoạt_động,SMALL(IF(Mục_tiêu=$H$2,ROW(Hoạt_động)-MIN(ROW(Hoạt_động))+1),ROWS($B$3:B55)))&CHAR(10),\"\")","v":""}]
[null,{"$f":"IFERROR(INDEX(Hoạt_động,SMALL(IF(Mục_tiêu=$B$2,ROW(Hoạt_động)-MIN(ROW(Hoạt_động))+1),ROWS($B$3:B56)))&\" \"&CHAR(10)&(INDEX(Kết_quả,SMALL(IF(Mục_tiêu=$B$2,ROW(Kết_quả)-MIN(ROW(Kết_quả))+1),ROWS($B$3:B56))))&CHAR(10),\"\")","v":""},null,{"$f":"IFERROR(INDEX(Hoạt_động,SMALL(IF(Mục_tiêu=$D$2,ROW(Hoạt_động)-MIN(ROW(Hoạt_động))+1),ROWS($B$3:B56)))&CHAR(10),\"\")","v":""},null,{"$f":"IFERROR(INDEX(Hoạt_động,SMALL(IF(Mục_tiêu=$F$2,ROW(Hoạt_động)-MIN(ROW(Hoạt_động))+1),ROWS($B$3:B56)))&CHAR(10),\"\")","v":""},null,{"$f":"IFERROR(INDEX(Hoạt_động,SMALL(IF(Mục_tiêu=$H$2,ROW(Hoạt_động)-MIN(ROW(Hoạt_động))+1),ROWS($B$3:B56)))&CHAR(10),\"\")","v":""}]
[null,{"$f":"IFERROR(INDEX(Hoạt_động,SMALL(IF(Mục_tiêu=$B$2,ROW(Hoạt_động)-MIN(ROW(Hoạt_động))+1),ROWS($B$3:B57)))&\" \"&CHAR(10)&(INDEX(Kết_quả,SMALL(IF(Mục_tiêu=$B$2,ROW(Kết_quả)-MIN(ROW(Kết_quả))+1),ROWS($B$3:B57))))&CHAR(10),\"\")","v":""},null,{"$f":"IFERROR(INDEX(Hoạt_động,SMALL(IF(Mục_tiêu=$D$2,ROW(Hoạt_động)-MIN(ROW(Hoạt_động))+1),ROWS($B$3:B57)))&CHAR(10),\"\")","v":""},null,{"$f":"IFERROR(INDEX(Hoạt_động,SMALL(IF(Mục_tiêu=$F$2,ROW(Hoạt_động)-MIN(ROW(Hoạt_động))+1),ROWS($B$3:B57)))&CHAR(10),\"\")","v":""},null,{"$f":"IFERROR(INDEX(Hoạt_động,SMALL(IF(Mục_tiêu=$H$2,ROW(Hoạt_động)-MIN(ROW(Hoạt_động))+1),ROWS($B$3:B57)))&CHAR(10),\"\")","v":""}]
[null,{"$f":"IFERROR(INDEX(Hoạt_động,SMALL(IF(Mục_tiêu=$B$2,ROW(Hoạt_động)-MIN(ROW(Hoạt_động))+1),ROWS($B$3:B58)))&\" \"&CHAR(10)&(INDEX(Kết_quả,SMALL(IF(Mục_tiêu=$B$2,ROW(Kết_quả)-MIN(ROW(Kết_quả))+1),ROWS($B$3:B58))))&CHAR(10),\"\")","v":""},null,{"$f":"IFERROR(INDEX(Hoạt_động,SMALL(IF(Mục_tiêu=$D$2,ROW(Hoạt_động)-MIN(ROW(Hoạt_động))+1),ROWS($B$3:B58)))&CHAR(10),\"\")","v":""},null,{"$f":"IFERROR(INDEX(Hoạt_động,SMALL(IF(Mục_tiêu=$F$2,ROW(Hoạt_động)-MIN(ROW(Hoạt_động))+1),ROWS($B$3:B58)))&CHAR(10),\"\")","v":""},null,{"$f":"IFERROR(INDEX(Hoạt_động,SMALL(IF(Mục_tiêu=$H$2,ROW(Hoạt_động)-MIN(ROW(Hoạt_động))+1),ROWS($B$3:B58)))&CHAR(10),\"\")","v":""}]
[null,{"$f":"IFERROR(INDEX(Hoạt_động,SMALL(IF(Mục_tiêu=$B$2,ROW(Hoạt_động)-MIN(ROW(Hoạt_động))+1),ROWS($B$3:B59)))&\" \"&CHAR(10)&(INDEX(Kết_quả,SMALL(IF(Mục_tiêu=$B$2,ROW(Kết_quả)-MIN(ROW(Kết_quả))+1),ROWS($B$3:B59))))&CHAR(10),\"\")","v":""},null,{"$f":"IFERROR(INDEX(Hoạt_động,SMALL(IF(Mục_tiêu=$D$2,ROW(Hoạt_động)-MIN(ROW(Hoạt_động))+1),ROWS($B$3:B59)))&CHAR(10),\"\")","v":""},null,{"$f":"IFERROR(INDEX(Hoạt_động,SMALL(IF(Mục_tiêu=$F$2,ROW(Hoạt_động)-MIN(ROW(Hoạt_động))+1),ROWS($B$3:B59)))&CHAR(10),\"\")","v":""},null,{"$f":"IFERROR(INDEX(Hoạt_động,SMALL(IF(Mục_tiêu=$H$2,ROW(Hoạt_động)-MIN(ROW(Hoạt_động))+1),ROWS($B$3:B59)))&CHAR(10),\"\")","v":""}]
[null,{"$f":"IFERROR(INDEX(Hoạt_động,SMALL(IF(Mục_tiêu=$B$2,ROW(Hoạt_động)-MIN(ROW(Hoạt_động))+1),ROWS($B$3:B60)))&\" \"&CHAR(10)&(INDEX(Kết_quả,SMALL(IF(Mục_tiêu=$B$2,ROW(Kết_quả)-MIN(ROW(Kết_quả))+1),ROWS($B$3:B60))))&CHAR(10),\"\")","v":""},null,{"$f":"IFERROR(INDEX(Hoạt_động,SMALL(IF(Mục_tiêu=$D$2,ROW(Hoạt_động)-MIN(ROW(Hoạt_động))+1),ROWS($B$3:B60)))&CHAR(10),\"\")","v":""},null,{"$f":"IFERROR(INDEX(Hoạt_động,SMALL(IF(Mục_tiêu=$F$2,ROW(Hoạt_động)-MIN(ROW(Hoạt_động))+1),ROWS($B$3:B60)))&CHAR(10),\"\")","v":""},null,{"$f":"IFERROR(INDEX(Hoạt_động,SMALL(IF(Mục_tiêu=$H$2,ROW(Hoạt_động)-MIN(ROW(Hoạt_động))+1),ROWS($B$3:B60)))&CHAR(10),\"\")","v":""}]
[null,{"$f":"IFERROR(INDEX(Hoạt_động,SMALL(IF(Mục_tiêu=$B$2,ROW(Hoạt_động)-MIN(ROW(Hoạt_động))+1),ROWS($B$3:B61)))&\" \"&CHAR(10)&(INDEX(Kết_quả,SMALL(IF(Mục_tiêu=$B$2,ROW(Kết_quả)-MIN(ROW(Kết_quả))+1),ROWS($B$3:B61))))&CHAR(10),\"\")","v":""},null,{"$f":"IFERROR(INDEX(Hoạt_động,SMALL(IF(Mục_tiêu=$D$2,ROW(Hoạt_động)-MIN(ROW(Hoạt_động))+1),ROWS($B$3:B61)))&CHAR(10),\"\")","v":""},null,{"$f":"IFERROR(INDEX(Hoạt_động,SMALL(IF(Mục_tiêu=$F$2,ROW(Hoạt_động)-MIN(ROW(Hoạt_động))+1),ROWS($B$3:B61)))&CHAR(10),\"\")","v":""},null,{"$f":"IFERROR(INDEX(Hoạt_động,SMALL(IF(Mục_tiêu=$H$2,ROW(Hoạt_động)-MIN(ROW(Hoạt_động))+1),ROWS($B$3:B61)))&CHAR(10),\"\")","v":""}]
[null,{"$f":"IFERROR(INDEX(Hoạt_động,SMALL(IF(Mục_tiêu=$B$2,ROW(Hoạt_động)-MIN(ROW(Hoạt_động))+1),ROWS($B$3:B62)))&\" \"&CHAR(10)&(INDEX(Kết_quả,SMALL(IF(Mục_tiêu=$B$2,ROW(Kết_quả)-MIN(ROW(Kết_quả))+1),ROWS($B$3:B62))))&CHAR(10),\"\")","v":""},null,{"$f":"IFERROR(INDEX(Hoạt_động,SMALL(IF(Mục_tiêu=$D$2,ROW(Hoạt_động)-MIN(ROW(Hoạt_động))+1),ROWS($B$3:B62)))&CHAR(10),\"\")","v":""},null,{"$f":"IFERROR(INDEX(Hoạt_động,SMALL(IF(Mục_tiêu=$F$2,ROW(Hoạt_động)-MIN(ROW(Hoạt_động))+1),ROWS($B$3:B62)))&CHAR(10),\"\")","v":""},null,{"$f":"IFERROR(INDEX(Hoạt_động,SMALL(IF(Mục_tiêu=$H$2,ROW(Hoạt_động)-MIN(ROW(Hoạt_động))+1),ROWS($B$3:B62)))&CHAR(10),\"\")","v":""}]
[null,{"$f":"IFERROR(INDEX(Hoạt_động,SMALL(IF(Mục_tiêu=$B$2,ROW(Hoạt_động)-MIN(ROW(Hoạt_động))+1),ROWS($B$3:B63)))&\" \"&CHAR(10)&(INDEX(Kết_quả,SMALL(IF(Mục_tiêu=$B$2,ROW(Kết_quả)-MIN(ROW(Kết_quả))+1),ROWS($B$3:B63))))&CHAR(10),\"\")","v":""},null,{"$f":"IFERROR(INDEX(Hoạt_động,SMALL(IF(Mục_tiêu=$D$2,ROW(Hoạt_động)-MIN(ROW(Hoạt_động))+1),ROWS($B$3:B63)))&CHAR(10),\"\")","v":""},null,{"$f":"IFERROR(INDEX(Hoạt_động,SMALL(IF(Mục_tiêu=$F$2,ROW(Hoạt_động)-MIN(ROW(Hoạt_động))+1),ROWS($B$3:B63)))&CHAR(10),\"\")","v":""},null,{"$f":"IFERROR(INDEX(Hoạt_động,SMALL(IF(Mục_tiêu=$H$2,ROW(Hoạt_động)-MIN(ROW(Hoạt_động))+1),ROWS($B$3:B63)))&CHAR(10),\"\")","v":""}]
[null,{"$f":"IFERROR(INDEX(Hoạt_động,SMALL(IF(Mục_tiêu=$B$2,ROW(Hoạt_động)-MIN(ROW(Hoạt_động))+1),ROWS($B$3:B64)))&\" \"&CHAR(10)&(INDEX(Kết_quả,SMALL(IF(Mục_tiêu=$B$2,ROW(Kết_quả)-MIN(ROW(Kết_quả))+1),ROWS($B$3:B64))))&CHAR(10),\"\")","v":""},null,{"$f":"IFERROR(INDEX(Hoạt_động,SMALL(IF(Mục_tiêu=$D$2,ROW(Hoạt_động)-MIN(ROW(Hoạt_động))+1),ROWS($B$3:B64)))&CHAR(10),\"\")","v":""},null,{"$f":"IFERROR(INDEX(Hoạt_động,SMALL(IF(Mục_tiêu=$F$2,ROW(Hoạt_động)-MIN(ROW(Hoạt_động))+1),ROWS($B$3:B64)))&CHAR(10),\"\")","v":""},null,{"$f":"IFERROR(INDEX(Hoạt_động,SMALL(IF(Mục_tiêu=$H$2,ROW(Hoạt_động)-MIN(ROW(Hoạt_động))+1),ROWS($B$3:B64)))&CHAR(10),\"\")","v":""}]
[null,{"$f":"IFERROR(INDEX(Hoạt_động,SMALL(IF(Mục_tiêu=$B$2,ROW(Hoạt_động)-MIN(ROW(Hoạt_động))+1),ROWS($B$3:B65)))&\" \"&CHAR(10)&(INDEX(Kết_quả,SMALL(IF(Mục_tiêu=$B$2,ROW(Kết_quả)-MIN(ROW(Kết_quả))+1),ROWS($B$3:B65))))&CHAR(10),\"\")","v":""},null,{"$f":"IFERROR(INDEX(Hoạt_động,SMALL(IF(Mục_tiêu=$D$2,ROW(Hoạt_động)-MIN(ROW(Hoạt_động))+1),ROWS($B$3:B65)))&CHAR(10),\"\")","v":""},null,{"$f":"IFERROR(INDEX(Hoạt_động,SMALL(IF(Mục_tiêu=$F$2,ROW(Hoạt_động)-MIN(ROW(Hoạt_động))+1),ROWS($B$3:B65)))&CHAR(10),\"\")","v":""},null,{"$f":"IFERROR(INDEX(Hoạt_động,SMALL(IF(Mục_tiêu=$H$2,ROW(Hoạt_động)-MIN(ROW(Hoạt_động))+1),ROWS($B$3:B65)))&CHAR(10),\"\")","v":""}]
[null,{"$f":"IFERROR(INDEX(Hoạt_động,SMALL(IF(Mục_tiêu=$B$2,ROW(Hoạt_động)-MIN(ROW(Hoạt_động))+1),ROWS($B$3:B66)))&\" \"&CHAR(10)&(INDEX(Kết_quả,SMALL(IF(Mục_tiêu=$B$2,ROW(Kết_quả)-MIN(ROW(Kết_quả))+1),ROWS($B$3:B66))))&CHAR(10),\"\")","v":""},null,{"$f":"IFERROR(INDEX(Hoạt_động,SMALL(IF(Mục_tiêu=$D$2,ROW(Hoạt_động)-MIN(ROW(Hoạt_động))+1),ROWS($B$3:B66)))&CHAR(10),\"\")","v":""},null,{"$f":"IFERROR(INDEX(Hoạt_động,SMALL(IF(Mục_tiêu=$F$2,ROW(Hoạt_động)-MIN(ROW(Hoạt_động))+1),ROWS($B$3:B66)))&CHAR(10),\"\")","v":""},null,{"$f":"IFERROR(INDEX(Hoạt_động,SMALL(IF(Mục_tiêu=$H$2,ROW(Hoạt_động)-MIN(ROW(Hoạt_động))+1),ROWS($B$3:B66)))&CHAR(10),\"\")","v":""}]
[null,{"$f":"IFERROR(INDEX(Hoạt_động,SMALL(IF(Mục_tiêu=$B$2,ROW(Hoạt_động)-MIN(ROW(Hoạt_động))+1),ROWS($B$3:B67)))&\" \"&CHAR(10)&(INDEX(Kết_quả,SMALL(IF(Mục_tiêu=$B$2,ROW(Kết_quả)-MIN(ROW(Kết_quả))+1),ROWS($B$3:B67))))&CHAR(10),\"\")","v":""},null,{"$f":"IFERROR(INDEX(Hoạt_động,SMALL(IF(Mục_tiêu=$D$2,ROW(Hoạt_động)-MIN(ROW(Hoạt_động))+1),ROWS($B$3:B67)))&CHAR(10),\"\")","v":""},null,{"$f":"IFERROR(INDEX(Hoạt_động,SMALL(IF(Mục_tiêu=$F$2,ROW(Hoạt_động)-MIN(ROW(Hoạt_động))+1),ROWS($B$3:B67)))&CHAR(10),\"\")","v":""},null,{"$f":"IFERROR(INDEX(Hoạt_động,SMALL(IF(Mục_tiêu=$H$2,ROW(Hoạt_động)-MIN(ROW(Hoạt_động))+1),ROWS($B$3:B67)))&CHAR(10),\"\")","v":""}]
[null,{"$f":"IFERROR(INDEX(Hoạt_động,SMALL(IF(Mục_tiêu=$B$2,ROW(Hoạt_động)-MIN(ROW(Hoạt_động))+1),ROWS($B$3:B68)))&\" \"&CHAR(10)&(INDEX(Kết_quả,SMALL(IF(Mục_tiêu=$B$2,ROW(Kết_quả)-MIN(ROW(Kết_quả))+1),ROWS($B$3:B68))))&CHAR(10),\"\")","v":""},null,{"$f":"IFERROR(INDEX(Hoạt_động,SMALL(IF(Mục_tiêu=$D$2,ROW(Hoạt_động)-MIN(ROW(Hoạt_động))+1),ROWS($B$3:B68)))&CHAR(10),\"\")","v":""},null,{"$f":"IFERROR(INDEX(Hoạt_động,SMALL(IF(Mục_tiêu=$F$2,ROW(Hoạt_động)-MIN(ROW(Hoạt_động))+1),ROWS($B$3:B68)))&CHAR(10),\"\")","v":""},null,{"$f":"IFERROR(INDEX(Hoạt_động,SMALL(IF(Mục_tiêu=$H$2,ROW(Hoạt_động)-MIN(ROW(Hoạt_động))+1),ROWS($B$3:B68)))&CHAR(10),\"\")","v":""}]
[null,{"$f":"IFERROR(INDEX(Hoạt_động,SMALL(IF(Mục_tiêu=$B$2,ROW(Hoạt_động)-MIN(ROW(Hoạt_động))+1),ROWS($B$3:B69)))&\" \"&CHAR(10)&(INDEX(Kết_quả,SMALL(IF(Mục_tiêu=$B$2,ROW(Kết_quả)-MIN(ROW(Kết_quả))+1),ROWS($B$3:B69))))&CHAR(10),\"\")","v":""},null,{"$f":"IFERROR(INDEX(Hoạt_động,SMALL(IF(Mục_tiêu=$D$2,ROW(Hoạt_động)-MIN(ROW(Hoạt_động))+1),ROWS($B$3:B69)))&CHAR(10),\"\")","v":""},null,{"$f":"IFERROR(INDEX(Hoạt_động,SMALL(IF(Mục_tiêu=$F$2,ROW(Hoạt_động)-MIN(ROW(Hoạt_động))+1),ROWS($B$3:B69)))&CHAR(10),\"\")","v":""},null,{"$f":"IFERROR(INDEX(Hoạt_động,SMALL(IF(Mục_tiêu=$H$2,ROW(Hoạt_động)-MIN(ROW(Hoạt_động))+1),ROWS($B$3:B69)))&CHAR(10),\"\")","v":""}]
[null,{"$f":"IFERROR(INDEX(Hoạt_động,SMALL(IF(Mục_tiêu=$B$2,ROW(Hoạt_động)-MIN(ROW(Hoạt_động))+1),ROWS($B$3:B70)))&\" \"&CHAR(10)&(INDEX(Kết_quả,SMALL(IF(Mục_tiêu=$B$2,ROW(Kết_quả)-MIN(ROW(Kết_quả))+1),ROWS($B$3:B70))))&CHAR(10),\"\")","v":""},null,{"$f":"IFERROR(INDEX(Hoạt_động,SMALL(IF(Mục_tiêu=$D$2,ROW(Hoạt_động)-MIN(ROW(Hoạt_động))+1),ROWS($B$3:B70)))&CHAR(10),\"\")","v":""},null,{"$f":"IFERROR(INDEX(Hoạt_động,SMALL(IF(Mục_tiêu=$F$2,ROW(Hoạt_động)-MIN(ROW(Hoạt_động))+1),ROWS($B$3:B70)))&CHAR(10),\"\")","v":""},null,{"$f":"IFERROR(INDEX(Hoạt_động,SMALL(IF(Mục_tiêu=$H$2,ROW(Hoạt_động)-MIN(ROW(Hoạt_động))+1),ROWS($B$3:B70)))&CHAR(10),\"\")","v":""}]
[null,{"$f":"IFERROR(INDEX(Hoạt_động,SMALL(IF(Mục_tiêu=$B$2,ROW(Hoạt_động)-MIN(ROW(Hoạt_động))+1),ROWS($B$3:B71)))&\" \"&CHAR(10)&(INDEX(Kết_quả,SMALL(IF(Mục_tiêu=$B$2,ROW(Kết_quả)-MIN(ROW(Kết_quả))+1),ROWS($B$3:B71))))&CHAR(10),\"\")","v":""},null,{"$f":"IFERROR(INDEX(Hoạt_động,SMALL(IF(Mục_tiêu=$D$2,ROW(Hoạt_động)-MIN(ROW(Hoạt_động))+1),ROWS($B$3:B71)))&CHAR(10),\"\")","v":""},null,{"$f":"IFERROR(INDEX(Hoạt_động,SMALL(IF(Mục_tiêu=$F$2,ROW(Hoạt_động)-MIN(ROW(Hoạt_động))+1),ROWS($B$3:B71)))&CHAR(10),\"\")","v":""},null,{"$f":"IFERROR(INDEX(Hoạt_động,SMALL(IF(Mục_tiêu=$H$2,ROW(Hoạt_động)-MIN(ROW(Hoạt_động))+1),ROWS($B$3:B71)))&CHAR(10),\"\")","v":""}]
[null,{"$f":"IFERROR(INDEX(Hoạt_động,SMALL(IF(Mục_tiêu=$B$2,ROW(Hoạt_động)-MIN(ROW(Hoạt_động))+1),ROWS($B$3:B72)))&\" \"&CHAR(10)&(INDEX(Kết_quả,SMALL(IF(Mục_tiêu=$B$2,ROW(Kết_quả)-MIN(ROW(Kết_quả))+1),ROWS($B$3:B72))))&CHAR(10),\"\")","v":""},null,{"$f":"IFERROR(INDEX(Hoạt_động,SMALL(IF(Mục_tiêu=$D$2,ROW(Hoạt_động)-MIN(ROW(Hoạt_động))+1),ROWS($B$3:B72)))&CHAR(10),\"\")","v":""},null,{"$f":"IFERROR(INDEX(Hoạt_động,SMALL(IF(Mục_tiêu=$F$2,ROW(Hoạt_động)-MIN(ROW(Hoạt_động))+1),ROWS($B$3:B72)))&CHAR(10),\"\")","v":""},null,{"$f":"IFERROR(INDEX(Hoạt_động,SMALL(IF(Mục_tiêu=$H$2,ROW(Hoạt_động)-MIN(ROW(Hoạt_động))+1),ROWS($B$3:B72)))&CHAR(10),\"\")","v":""}]
[null,{"$f":"IFERROR(INDEX(Hoạt_động,SMALL(IF(Mục_tiêu=$B$2,ROW(Hoạt_động)-MIN(ROW(Hoạt_động))+1),ROWS($B$3:B73)))&\" \"&CHAR(10)&(INDEX(Kết_quả,SMALL(IF(Mục_tiêu=$B$2,ROW(Kết_quả)-MIN(ROW(Kết_quả))+1),ROWS($B$3:B73))))&CHAR(10),\"\")","v":""},null,{"$f":"IFERROR(INDEX(Hoạt_động,SMALL(IF(Mục_tiêu=$D$2,ROW(Hoạt_động)-MIN(ROW(Hoạt_động))+1),ROWS($B$3:B73)))&CHAR(10),\"\")","v":""},null,{"$f":"IFERROR(INDEX(Hoạt_động,SMALL(IF(Mục_tiêu=$F$2,ROW(Hoạt_động)-MIN(ROW(Hoạt_động))+1),ROWS($B$3:B73)))&CHAR(10),\"\")","v":""},null,{"$f":"IFERROR(INDEX(Hoạt_động,SMALL(IF(Mục_tiêu=$H$2,ROW(Hoạt_động)-MIN(ROW(Hoạt_động))+1),ROWS($B$3:B73)))&CHAR(10),\"\")","v":""}]
[null,{"$f":"IFERROR(INDEX(Hoạt_động,SMALL(IF(Mục_tiêu=$B$2,ROW(Hoạt_động)-MIN(ROW(Hoạt_động))+1),ROWS($B$3:B74)))&\" \"&CHAR(10)&(INDEX(Kết_quả,SMALL(IF(Mục_tiêu=$B$2,ROW(Kết_quả)-MIN(ROW(Kết_quả))+1),ROWS($B$3:B74))))&CHAR(10),\"\")","v":""},null,{"$f":"IFERROR(INDEX(Hoạt_động,SMALL(IF(Mục_tiêu=$D$2,ROW(Hoạt_động)-MIN(ROW(Hoạt_động))+1),ROWS($B$3:B74)))&CHAR(10),\"\")","v":""},null,{"$f":"IFERROR(INDEX(Hoạt_động,SMALL(IF(Mục_tiêu=$F$2,ROW(Hoạt_động)-MIN(ROW(Hoạt_động))+1),ROWS($B$3:B74)))&CHAR(10),\"\")","v":""},null,{"$f":"IFERROR(INDEX(Hoạt_động,SMALL(IF(Mục_tiêu=$H$2,ROW(Hoạt_động)-MIN(ROW(Hoạt_động))+1),ROWS($B$3:B74)))&CHAR(10),\"\")","v":""}]
[null,{"$f":"IFERROR(INDEX(Hoạt_động,SMALL(IF(Mục_tiêu=$B$2,ROW(Hoạt_động)-MIN(ROW(Hoạt_động))+1),ROWS($B$3:B75)))&\" \"&CHAR(10)&(INDEX(Kết_quả,SMALL(IF(Mục_tiêu=$B$2,ROW(Kết_quả)-MIN(ROW(Kết_quả))+1),ROWS($B$3:B75))))&CHAR(10),\"\")","v":""},null,{"$f":"IFERROR(INDEX(Hoạt_động,SMALL(IF(Mục_tiêu=$D$2,ROW(Hoạt_động)-MIN(ROW(Hoạt_động))+1),ROWS($B$3:B75)))&CHAR(10),\"\")","v":""},null,{"$f":"IFERROR(INDEX(Hoạt_động,SMALL(IF(Mục_tiêu=$F$2,ROW(Hoạt_động)-MIN(ROW(Hoạt_động))+1),ROWS($B$3:B75)))&CHAR(10),\"\")","v":""},null,{"$f":"IFERROR(INDEX(Hoạt_động,SMALL(IF(Mục_tiêu=$H$2,ROW(Hoạt_động)-MIN(ROW(Hoạt_động))+1),ROWS($B$3:B75)))&CHAR(10),\"\")","v":""}]
[null,{"$f":"IFERROR(INDEX(Hoạt_động,SMALL(IF(Mục_tiêu=$B$2,ROW(Hoạt_động)-MIN(ROW(Hoạt_động))+1),ROWS($B$3:B76)))&\" \"&CHAR(10)&(INDEX(Kết_quả,SMALL(IF(Mục_tiêu=$B$2,ROW(Kết_quả)-MIN(ROW(Kết_quả))+1),ROWS($B$3:B76))))&CHAR(10),\"\")","v":""},null,{"$f":"IFERROR(INDEX(Hoạt_động,SMALL(IF(Mục_tiêu=$D$2,ROW(Hoạt_động)-MIN(ROW(Hoạt_động))+1),ROWS($B$3:B76)))&CHAR(10),\"\")","v":""},null,{"$f":"IFERROR(INDEX(Hoạt_động,SMALL(IF(Mục_tiêu=$F$2,ROW(Hoạt_động)-MIN(ROW(Hoạt_động))+1),ROWS($B$3:B76)))&CHAR(10),\"\")","v":""},null,{"$f":"IFERROR(INDEX(Hoạt_động,SMALL(IF(Mục_tiêu=$H$2,ROW(Hoạt_động)-MIN(ROW(Hoạt_động))+1),ROWS($B$3:B76)))&CHAR(10),\"\")","v":""}]
[null,{"$f":"IFERROR(INDEX(Hoạt_động,SMALL(IF(Mục_tiêu=$B$2,ROW(Hoạt_động)-MIN(ROW(Hoạt_động))+1),ROWS($B$3:B77)))&\" \"&CHAR(10)&(INDEX(Kết_quả,SMALL(IF(Mục_tiêu=$B$2,ROW(Kết_quả)-MIN(ROW(Kết_quả))+1),ROWS($B$3:B77))))&CHAR(10),\"\")","v":""},null,{"$f":"IFERROR(INDEX(Hoạt_động,SMALL(IF(Mục_tiêu=$D$2,ROW(Hoạt_động)-MIN(ROW(Hoạt_động))+1),ROWS($B$3:B77)))&CHAR(10),\"\")","v":""},null,{"$f":"IFERROR(INDEX(Hoạt_động,SMALL(IF(Mục_tiêu=$F$2,ROW(Hoạt_động)-MIN(ROW(Hoạt_động))+1),ROWS($B$3:B77)))&CHAR(10),\"\")","v":""},null,{"$f":"IFERROR(INDEX(Hoạt_động,SMALL(IF(Mục_tiêu=$H$2,ROW(Hoạt_động)-MIN(ROW(Hoạt_động))+1),ROWS($B$3:B77)))&CHAR(10),\"\")","v":""}]
[null,{"$f":"IFERROR(INDEX(Hoạt_động,SMALL(IF(Mục_tiêu=$B$2,ROW(Hoạt_động)-MIN(ROW(Hoạt_động))+1),ROWS($B$3:B78)))&\" \"&CHAR(10)&(INDEX(Kết_quả,SMALL(IF(Mục_tiêu=$B$2,ROW(Kết_quả)-MIN(ROW(Kết_quả))+1),ROWS($B$3:B78))))&CHAR(10),\"\")","v":""},null,{"$f":"IFERROR(INDEX(Hoạt_động,SMALL(IF(Mục_tiêu=$D$2,ROW(Hoạt_động)-MIN(ROW(Hoạt_động))+1),ROWS($B$3:B78)))&CHAR(10),\"\")","v":""},null,{"$f":"IFERROR(INDEX(Hoạt_động,SMALL(IF(Mục_tiêu=$F$2,ROW(Hoạt_động)-MIN(ROW(Hoạt_động))+1),ROWS($B$3:B78)))&CHAR(10),\"\")","v":""},null,{"$f":"IFERROR(INDEX(Hoạt_động,SMALL(IF(Mục_tiêu=$H$2,ROW(Hoạt_động)-MIN(ROW(Hoạt_động))+1),ROWS($B$3:B78)))&CHAR(10),\"\")","v":""}]
[null,{"$f":"IFERROR(INDEX(Hoạt_động,SMALL(IF(Mục_tiêu=$B$2,ROW(Hoạt_động)-MIN(ROW(Hoạt_động))+1),ROWS($B$3:B79)))&\" \"&CHAR(10)&(INDEX(Kết_quả,SMALL(IF(Mục_tiêu=$B$2,ROW(Kết_quả)-MIN(ROW(Kết_quả))+1),ROWS($B$3:B79))))&CHAR(10),\"\")","v":""},null,{"$f":"IFERROR(INDEX(Hoạt_động,SMALL(IF(Mục_tiêu=$D$2,ROW(Hoạt_động)-MIN(ROW(Hoạt_động))+1),ROWS($B$3:B79)))&CHAR(10),\"\")","v":""},null,{"$f":"IFERROR(INDEX(Hoạt_động,SMALL(IF(Mục_tiêu=$F$2,ROW(Hoạt_động)-MIN(ROW(Hoạt_động))+1),ROWS($B$3:B79)))&CHAR(10),\"\")","v":""},null,{"$f":"IFERROR(INDEX(Hoạt_động,SMALL(IF(Mục_tiêu=$H$2,ROW(Hoạt_động)-MIN(ROW(Hoạt_động))+1),ROWS($B$3:B79)))&CHAR(10),\"\")","v":""}]
[null,{"$f":"IFERROR(INDEX(Hoạt_động,SMALL(IF(Mục_tiêu=$B$2,ROW(Hoạt_động)-MIN(ROW(Hoạt_động))+1),ROWS($B$3:B80)))&\" \"&CHAR(10)&(INDEX(Kết_quả,SMALL(IF(Mục_tiêu=$B$2,ROW(Kết_quả)-MIN(ROW(Kết_quả))+1),ROWS($B$3:B80))))&CHAR(10),\"\")","v":""},null,{"$f":"IFERROR(INDEX(Hoạt_động,SMALL(IF(Mục_tiêu=$D$2,ROW(Hoạt_động)-MIN(ROW(Hoạt_động))+1),ROWS($B$3:B80)))&CHAR(10),\"\")","v":""},null,{"$f":"IFERROR(INDEX(Hoạt_động,SMALL(IF(Mục_tiêu=$F$2,ROW(Hoạt_động)-MIN(ROW(Hoạt_động))+1),ROWS($B$3:B80)))&CHAR(10),\"\")","v":""},null,{"$f":"IFERROR(INDEX(Hoạt_động,SMALL(IF(Mục_tiêu=$H$2,ROW(Hoạt_động)-MIN(ROW(Hoạt_động))+1),ROWS($B$3:B80)))&CHAR(10),\"\")","v":""}]
[null,{"$f":"IFERROR(INDEX(Hoạt_động,SMALL(IF(Mục_tiêu=$B$2,ROW(Hoạt_động)-MIN(ROW(Hoạt_động))+1),ROWS($B$3:B81)))&\" \"&CHAR(10)&(INDEX(Kết_quả,SMALL(IF(Mục_tiêu=$B$2,ROW(Kết_quả)-MIN(ROW(Kết_quả))+1),ROWS($B$3:B81))))&CHAR(10),\"\")","v":""},null,{"$f":"IFERROR(INDEX(Hoạt_động,SMALL(IF(Mục_tiêu=$D$2,ROW(Hoạt_động)-MIN(ROW(Hoạt_động))+1),ROWS($B$3:B81)))&CHAR(10),\"\")","v":""},null,{"$f":"IFERROR(INDEX(Hoạt_động,SMALL(IF(Mục_tiêu=$F$2,ROW(Hoạt_động)-MIN(ROW(Hoạt_động))+1),ROWS($B$3:B81)))&CHAR(10),\"\")","v":""},null,{"$f":"IFERROR(INDEX(Hoạt_động,SMALL(IF(Mục_tiêu=$H$2,ROW(Hoạt_động)-MIN(ROW(Hoạt_động))+1),ROWS($B$3:B81)))&CHAR(10),\"\")","v":""}]
[null,{"$f":"IFERROR(INDEX(Hoạt_động,SMALL(IF(Mục_tiêu=$B$2,ROW(Hoạt_động)-MIN(ROW(Hoạt_động))+1),ROWS($B$3:B82)))&\" \"&CHAR(10)&(INDEX(Kết_quả,SMALL(IF(Mục_tiêu=$B$2,ROW(Kết_quả)-MIN(ROW(Kết_quả))+1),ROWS($B$3:B82))))&CHAR(10),\"\")","v":""},null,{"$f":"IFERROR(INDEX(Hoạt_động,SMALL(IF(Mục_tiêu=$D$2,ROW(Hoạt_động)-MIN(ROW(Hoạt_động))+1),ROWS($B$3:B82)))&CHAR(10),\"\")","v":""},null,{"$f":"IFERROR(INDEX(Hoạt_động,SMALL(IF(Mục_tiêu=$F$2,ROW(Hoạt_động)-MIN(ROW(Hoạt_động))+1),ROWS($B$3:B82)))&CHAR(10),\"\")","v":""},null,{"$f":"IFERROR(INDEX(Hoạt_động,SMALL(IF(Mục_tiêu=$H$2,ROW(Hoạt_động)-MIN(ROW(Hoạt_động))+1),ROWS($B$3:B82)))&CHAR(10),\"\")","v":""}]
[null,{"$f":"IFERROR(INDEX(Hoạt_động,SMALL(IF(Mục_tiêu=$B$2,ROW(Hoạt_động)-MIN(ROW(Hoạt_động))+1),ROWS($B$3:B83)))&\" \"&CHAR(10)&(INDEX(Kết_quả,SMALL(IF(Mục_tiêu=$B$2,ROW(Kết_quả)-MIN(ROW(Kết_quả))+1),ROWS($B$3:B83))))&CHAR(10),\"\")","v":""},null,{"$f":"IFERROR(INDEX(Hoạt_động,SMALL(IF(Mục_tiêu=$D$2,ROW(Hoạt_động)-MIN(ROW(Hoạt_động))+1),ROWS($B$3:B83)))&CHAR(10),\"\")","v":""},null,{"$f":"IFERROR(INDEX(Hoạt_động,SMALL(IF(Mục_tiêu=$F$2,ROW(Hoạt_động)-MIN(ROW(Hoạt_động))+1),ROWS($B$3:B83)))&CHAR(10),\"\")","v":""},null,{"$f":"IFERROR(INDEX(Hoạt_động,SMALL(IF(Mục_tiêu=$H$2,ROW(Hoạt_động)-MIN(ROW(Hoạt_động))+1),ROWS($B$3:B83)))&CHAR(10),\"\")","v":""}]
[null,{"$f":"IFERROR(INDEX(Hoạt_động,SMALL(IF(Mục_tiêu=$B$2,ROW(Hoạt_động)-MIN(ROW(Hoạt_động))+1),ROWS($B$3:B84)))&\" \"&CHAR(10)&(INDEX(Kết_quả,SMALL(IF(Mục_tiêu=$B$2,ROW(Kết_quả)-MIN(ROW(Kết_quả))+1),ROWS($B$3:B84))))&CHAR(10),\"\")","v":""},null,{"$f":"IFERROR(INDEX(Hoạt_động,SMALL(IF(Mục_tiêu=$D$2,ROW(Hoạt_động)-MIN(ROW(Hoạt_động))+1),ROWS($B$3:B84)))&CHAR(10),\"\")","v":""},null,{"$f":"IFERROR(INDEX(Hoạt_động,SMALL(IF(Mục_tiêu=$F$2,ROW(Hoạt_động)-MIN(ROW(Hoạt_động))+1),ROWS($B$3:B84)))&CHAR(10),\"\")","v":""},null,{"$f":"IFERROR(INDEX(Hoạt_động,SMALL(IF(Mục_tiêu=$H$2,ROW(Hoạt_động)-MIN(ROW(Hoạt_động))+1),ROWS($B$3:B84)))&CHAR(10),\"\")","v":""}]
[null,{"$f":"IFERROR(INDEX(Hoạt_động,SMALL(IF(Mục_tiêu=$B$2,ROW(Hoạt_động)-MIN(ROW(Hoạt_động))+1),ROWS($B$3:B85)))&\" \"&CHAR(10)&(INDEX(Kết_quả,SMALL(IF(Mục_tiêu=$B$2,ROW(Kết_quả)-MIN(ROW(Kết_quả))+1),ROWS($B$3:B85))))&CHAR(10),\"\")","v":""},null,{"$f":"IFERROR(INDEX(Hoạt_động,SMALL(IF(Mục_tiêu=$D$2,ROW(Hoạt_động)-MIN(ROW(Hoạt_động))+1),ROWS($B$3:B85)))&CHAR(10),\"\")","v":""},null,{"$f":"IFERROR(INDEX(Hoạt_động,SMALL(IF(Mục_tiêu=$F$2,ROW(Hoạt_động)-MIN(ROW(Hoạt_động))+1),ROWS($B$3:B85)))&CHAR(10),\"\")","v":""},null,{"$f":"IFERROR(INDEX(Hoạt_động,SMALL(IF(Mục_tiêu=$H$2,ROW(Hoạt_động)-MIN(ROW(Hoạt_động))+1),ROWS($B$3:B85)))&CHAR(10),\"\")","v":""}]
[null,{"$f":"IFERROR(INDEX(Hoạt_động,SMALL(IF(Mục_tiêu=$B$2,ROW(Hoạt_động)-MIN(ROW(Hoạt_động))+1),ROWS($B$3:B86)))&\" \"&CHAR(10)&(INDEX(Kết_quả,SMALL(IF(Mục_tiêu=$B$2,ROW(Kết_quả)-MIN(ROW(Kết_quả))+1),ROWS($B$3:B86))))&CHAR(10),\"\")","v":""},null,{"$f":"IFERROR(INDEX(Hoạt_động,SMALL(IF(Mục_tiêu=$D$2,ROW(Hoạt_động)-MIN(ROW(Hoạt_động))+1),ROWS($B$3:B86)))&CHAR(10),\"\")","v":""},null,{"$f":"IFERROR(INDEX(Hoạt_động,SMALL(IF(Mục_tiêu=$F$2,ROW(Hoạt_động)-MIN(ROW(Hoạt_động))+1),ROWS($B$3:B86)))&CHAR(10),\"\")","v":""},null,{"$f":"IFERROR(INDEX(Hoạt_động,SMALL(IF(Mục_tiêu=$H$2,ROW(Hoạt_động)-MIN(ROW(Hoạt_động))+1),ROWS($B$3:B86)))&CHAR(10),\"\")","v":""}]
[null,{"$f":"IFERROR(INDEX(Hoạt_động,SMALL(IF(Mục_tiêu=$B$2,ROW(Hoạt_động)-MIN(ROW(Hoạt_động))+1),ROWS($B$3:B87)))&\" \"&CHAR(10)&(INDEX(Kết_quả,SMALL(IF(Mục_tiêu=$B$2,ROW(Kết_quả)-MIN(ROW(Kết_quả))+1),ROWS($B$3:B87))))&CHAR(10),\"\")","v":""},null,{"$f":"IFERROR(INDEX(Hoạt_động,SMALL(IF(Mục_tiêu=$D$2,ROW(Hoạt_động)-MIN(ROW(Hoạt_động))+1),ROWS($B$3:B87)))&CHAR(10),\"\")","v":""},null,{"$f":"IFERROR(INDEX(Hoạt_động,SMALL(IF(Mục_tiêu=$F$2,ROW(Hoạt_động)-MIN(ROW(Hoạt_động))+1),ROWS($B$3:B87)))&CHAR(10),\"\")","v":""},null,{"$f":"IFERROR(INDEX(Hoạt_động,SMALL(IF(Mục_tiêu=$H$2,ROW(Hoạt_động)-MIN(ROW(Hoạt_động))+1),ROWS($B$3:B87)))&CHAR(10),\"\")","v":""}]
[null,{"$f":"IFERROR(INDEX(Hoạt_động,SMALL(IF(Mục_tiêu=$B$2,ROW(Hoạt_động)-MIN(ROW(Hoạt_động))+1),ROWS($B$3:B88)))&\" \"&CHAR(10)&(INDEX(Kết_quả,SMALL(IF(Mục_tiêu=$B$2,ROW(Kết_quả)-MIN(ROW(Kết_quả))+1),ROWS($B$3:B88))))&CHAR(10),\"\")","v":""},null,{"$f":"IFERROR(INDEX(Hoạt_động,SMALL(IF(Mục_tiêu=$D$2,ROW(Hoạt_động)-MIN(ROW(Hoạt_động))+1),ROWS($B$3:B88)))&CHAR(10),\"\")","v":""},null,{"$f":"IFERROR(INDEX(Hoạt_động,SMALL(IF(Mục_tiêu=$F$2,ROW(Hoạt_động)-MIN(ROW(Hoạt_động))+1),ROWS($B$3:B88)))&CHAR(10),\"\")","v":""},null,{"$f":"IFERROR(INDEX(Hoạt_động,SMALL(IF(Mục_tiêu=$H$2,ROW(Hoạt_động)-MIN(ROW(Hoạt_động))+1),ROWS($B$3:B88)))&CHAR(10),\"\")","v":""}]
[null,{"$f":"IFERROR(INDEX(Hoạt_động,SMALL(IF(Mục_tiêu=$B$2,ROW(Hoạt_động)-MIN(ROW(Hoạt_động))+1),ROWS($B$3:B89)))&\" \"&CHAR(10)&(INDEX(Kết_quả,SMALL(IF(Mục_tiêu=$B$2,ROW(Kết_quả)-MIN(ROW(Kết_quả))+1),ROWS($B$3:B89))))&CHAR(10),\"\")","v":""},null,{"$f":"IFERROR(INDEX(Hoạt_động,SMALL(IF(Mục_tiêu=$D$2,ROW(Hoạt_động)-MIN(ROW(Hoạt_động))+1),ROWS($B$3:B89)))&CHAR(10),\"\")","v":""},null,{"$f":"IFERROR(INDEX(Hoạt_động,SMALL(IF(Mục_tiêu=$F$2,ROW(Hoạt_động)-MIN(ROW(Hoạt_động))+1),ROWS($B$3:B89)))&CHAR(10),\"\")","v":""},null,{"$f":"IFERROR(INDEX(Hoạt_động,SMALL(IF(Mục_tiêu=$H$2,ROW(Hoạt_động)-MIN(ROW(Hoạt_động))+1),ROWS($B$3:B89)))&CHAR(10),\"\")","v":""}]
[null,{"$f":"IFERROR(INDEX(Hoạt_động,SMALL(IF(Mục_tiêu=$B$2,ROW(Hoạt_động)-MIN(ROW(Hoạt_động))+1),ROWS($B$3:B90)))&\" \"&CHAR(10)&(INDEX(Kết_quả,SMALL(IF(Mục_tiêu=$B$2,ROW(Kết_quả)-MIN(ROW(Kết_quả))+1),ROWS($B$3:B90))))&CHAR(10),\"\")","v":""},null,{"$f":"IFERROR(INDEX(Hoạt_động,SMALL(IF(Mục_tiêu=$D$2,ROW(Hoạt_động)-MIN(ROW(Hoạt_động))+1),ROWS($B$3:B90)))&CHAR(10),\"\")","v":""},null,{"$f":"IFERROR(INDEX(Hoạt_động,SMALL(IF(Mục_tiêu=$F$2,ROW(Hoạt_động)-MIN(ROW(Hoạt_động))+1),ROWS($B$3:B90)))&CHAR(10),\"\")","v":""},null,{"$f":"IFERROR(INDEX(Hoạt_động,SMALL(IF(Mục_tiêu=$H$2,ROW(Hoạt_động)-MIN(ROW(Hoạt_động))+1),ROWS($B$3:B90)))&CHAR(10),\"\")","v":""}]
[null,{"$f":"IFERROR(INDEX(Hoạt_động,SMALL(IF(Mục_tiêu=$B$2,ROW(Hoạt_động)-MIN(ROW(Hoạt_động))+1),ROWS($B$3:B91)))&\" \"&CHAR(10)&(INDEX(Kết_quả,SMALL(IF(Mục_tiêu=$B$2,ROW(Kết_quả)-MIN(ROW(Kết_quả))+1),ROWS($B$3:B91))))&CHAR(10),\"\")","v":""},null,{"$f":"IFERROR(INDEX(Hoạt_động,SMALL(IF(Mục_tiêu=$D$2,ROW(Hoạt_động)-MIN(ROW(Hoạt_động))+1),ROWS($B$3:B91)))&CHAR(10),\"\")","v":""},null,{"$f":"IFERROR(INDEX(Hoạt_động,SMALL(IF(Mục_tiêu=$F$2,ROW(Hoạt_động)-MIN(ROW(Hoạt_động))+1),ROWS($B$3:B91)))&CHAR(10),\"\")","v":""},null,{"$f":"IFERROR(INDEX(Hoạt_động,SMALL(IF(Mục_tiêu=$H$2,ROW(Hoạt_động)-MIN(ROW(Hoạt_động))+1),ROWS($B$3:B91)))&CHAR(10),\"\")","v":""}]
[null,{"$f":"IFERROR(INDEX(Hoạt_động,SMALL(IF(Mục_tiêu=$B$2,ROW(Hoạt_động)-MIN(ROW(Hoạt_động))+1),ROWS($B$3:B92)))&\" \"&CHAR(10)&(INDEX(Kết_quả,SMALL(IF(Mục_tiêu=$B$2,ROW(Kết_quả)-MIN(ROW(Kết_quả))+1),ROWS($B$3:B92))))&CHAR(10),\"\")","v":""},null,{"$f":"IFERROR(INDEX(Hoạt_động,SMALL(IF(Mục_tiêu=$D$2,ROW(Hoạt_động)-MIN(ROW(Hoạt_động))+1),ROWS($B$3:B92)))&CHAR(10),\"\")","v":""},null,{"$f":"IFERROR(INDEX(Hoạt_động,SMALL(IF(Mục_tiêu=$F$2,ROW(Hoạt_động)-MIN(ROW(Hoạt_động))+1),ROWS($B$3:B92)))&CHAR(10),\"\")","v":""},null,{"$f":"IFERROR(INDEX(Hoạt_động,SMALL(IF(Mục_tiêu=$H$2,ROW(Hoạt_động)-MIN(ROW(Hoạt_động))+1),ROWS($B$3:B92)))&CHAR(10),\"\")","v":""}]
[null,{"$f":"IFERROR(INDEX(Hoạt_động,SMALL(IF(Mục_tiêu=$B$2,ROW(Hoạt_động)-MIN(ROW(Hoạt_động))+1),ROWS($B$3:B93)))&\" \"&CHAR(10)&(INDEX(Kết_quả,SMALL(IF(Mục_tiêu=$B$2,ROW(Kết_quả)-MIN(ROW(Kết_quả))+1),ROWS($B$3:B93))))&CHAR(10),\"\")","v":""},null,{"$f":"IFERROR(INDEX(Hoạt_động,SMALL(IF(Mục_tiêu=$D$2,ROW(Hoạt_động)-MIN(ROW(Hoạt_động))+1),ROWS($B$3:B93)))&CHAR(10),\"\")","v":""},null,{"$f":"IFERROR(INDEX(Hoạt_động,SMALL(IF(Mục_tiêu=$F$2,ROW(Hoạt_động)-MIN(ROW(Hoạt_động))+1),ROWS($B$3:B93)))&CHAR(10),\"\")","v":""},null,{"$f":"IFERROR(INDEX(Hoạt_động,SMALL(IF(Mục_tiêu=$H$2,ROW(Hoạt_động)-MIN(ROW(Hoạt_động))+1),ROWS($B$3:B93)))&CHAR(10),\"\")","v":""}]
[null,{"$f":"IFERROR(INDEX(Hoạt_động,SMALL(IF(Mục_tiêu=$B$2,ROW(Hoạt_động)-MIN(ROW(Hoạt_động))+1),ROWS($B$3:B94)))&\" \"&CHAR(10)&(INDEX(Kết_quả,SMALL(IF(Mục_tiêu=$B$2,ROW(Kết_quả)-MIN(ROW(Kết_quả))+1),ROWS($B$3:B94))))&CHAR(10),\"\")","v":""},null,{"$f":"IFERROR(INDEX(Hoạt_động,SMALL(IF(Mục_tiêu=$D$2,ROW(Hoạt_động)-MIN(ROW(Hoạt_động))+1),ROWS($B$3:B94)))&CHAR(10),\"\")","v":""},null,{"$f":"IFERROR(INDEX(Hoạt_động,SMALL(IF(Mục_tiêu=$F$2,ROW(Hoạt_động)-MIN(ROW(Hoạt_động))+1),ROWS($B$3:B94)))&CHAR(10),\"\")","v":""},null,{"$f":"IFERROR(INDEX(Hoạt_động,SMALL(IF(Mục_tiêu=$H$2,ROW(Hoạt_động)-MIN(ROW(Hoạt_động))+1),ROWS($B$3:B94)))&CHAR(10),\"\")","v":""}]
[null,{"$f":"IFERROR(INDEX(Hoạt_động,SMALL(IF(Mục_tiêu=$B$2,ROW(Hoạt_động)-MIN(ROW(Hoạt_động))+1),ROWS($B$3:B95)))&\" \"&CHAR(10)&(INDEX(Kết_quả,SMALL(IF(Mục_tiêu=$B$2,ROW(Kết_quả)-MIN(ROW(Kết_quả))+1),ROWS($B$3:B95))))&CHAR(10),\"\")","v":""},null,{"$f":"IFERROR(INDEX(Hoạt_động,SMALL(IF(Mục_tiêu=$D$2,ROW(Hoạt_động)-MIN(ROW(Hoạt_động))+1),ROWS($B$3:B95)))&CHAR(10),\"\")","v":""},null,{"$f":"IFERROR(INDEX(Hoạt_động,SMALL(IF(Mục_tiêu=$F$2,ROW(Hoạt_động)-MIN(ROW(Hoạt_động))+1),ROWS($B$3:B95)))&CHAR(10),\"\")","v":""},null,{"$f":"IFERROR(INDEX(Hoạt_động,SMALL(IF(Mục_tiêu=$H$2,ROW(Hoạt_động)-MIN(ROW(Hoạt_động))+1),ROWS($B$3:B95)))&CHAR(10),\"\")","v":""}]
[null,{"$f":"IFERROR(INDEX(Hoạt_động,SMALL(IF(Mục_tiêu=$B$2,ROW(Hoạt_động)-MIN(ROW(Hoạt_động))+1),ROWS($B$3:B96)))&\" \"&CHAR(10)&(INDEX(Kết_quả,SMALL(IF(Mục_tiêu=$B$2,ROW(Kết_quả)-MIN(ROW(Kết_quả))+1),ROWS($B$3:B96))))&CHAR(10),\"\")","v":""},null,{"$f":"IFERROR(INDEX(Hoạt_động,SMALL(IF(Mục_tiêu=$D$2,ROW(Hoạt_động)-MIN(ROW(Hoạt_động))+1),ROWS($B$3:B96)))&CHAR(10),\"\")","v":""},null,{"$f":"IFERROR(INDEX(Hoạt_động,SMALL(IF(Mục_tiêu=$F$2,ROW(Hoạt_động)-MIN(ROW(Hoạt_động))+1),ROWS($B$3:B96)))&CHAR(10),\"\")","v":""},null,{"$f":"IFERROR(INDEX(Hoạt_động,SMALL(IF(Mục_tiêu=$H$2,ROW(Hoạt_động)-MIN(ROW(Hoạt_động))+1),ROWS($B$3:B96)))&CHAR(10),\"\")","v":""}]
[null,{"$f":"IFERROR(INDEX(Hoạt_động,SMALL(IF(Mục_tiêu=$B$2,ROW(Hoạt_động)-MIN(ROW(Hoạt_động))+1),ROWS($B$3:B97)))&\" \"&CHAR(10)&(INDEX(Kết_quả,SMALL(IF(Mục_tiêu=$B$2,ROW(Kết_quả)-MIN(ROW(Kết_quả))+1),ROWS($B$3:B97))))&CHAR(10),\"\")","v":""},null,{"$f":"IFERROR(INDEX(Hoạt_động,SMALL(IF(Mục_tiêu=$D$2,ROW(Hoạt_động)-MIN(ROW(Hoạt_động))+1),ROWS($B$3:B97)))&CHAR(10),\"\")","v":""},null,{"$f":"IFERROR(INDEX(Hoạt_động,SMALL(IF(Mục_tiêu=$F$2,ROW(Hoạt_động)-MIN(ROW(Hoạt_động))+1),ROWS($B$3:B97)))&CHAR(10),\"\")","v":""},null,{"$f":"IFERROR(INDEX(Hoạt_động,SMALL(IF(Mục_tiêu=$H$2,ROW(Hoạt_động)-MIN(ROW(Hoạt_động))+1),ROWS($B$3:B97)))&CHAR(10),\"\")","v":""}]
[null,{"$f":"IFERROR(INDEX(Hoạt_động,SMALL(IF(Mục_tiêu=$B$2,ROW(Hoạt_động)-MIN(ROW(Hoạt_động))+1),ROWS($B$3:B98)))&\" \"&CHAR(10)&(INDEX(Kết_quả,SMALL(IF(Mục_tiêu=$B$2,ROW(Kết_quả)-MIN(ROW(Kết_quả))+1),ROWS($B$3:B98))))&CHAR(10),\"\")","v":""},null,{"$f":"IFERROR(INDEX(Hoạt_động,SMALL(IF(Mục_tiêu=$D$2,ROW(Hoạt_động)-MIN(ROW(Hoạt_động))+1),ROWS($B$3:B98)))&CHAR(10),\"\")","v":""},null,{"$f":"IFERROR(INDEX(Hoạt_động,SMALL(IF(Mục_tiêu=$F$2,ROW(Hoạt_động)-MIN(ROW(Hoạt_động))+1),ROWS($B$3:B98)))&CHAR(10),\"\")","v":""},null,{"$f":"IFERROR(INDEX(Hoạt_động,SMALL(IF(Mục_tiêu=$H$2,ROW(Hoạt_động)-MIN(ROW(Hoạt_động))+1),ROWS($B$3:B98)))&CHAR(10),\"\")","v":""}]
[null,{"$f":"IFERROR(INDEX(Hoạt_động,SMALL(IF(Mục_tiêu=$B$2,ROW(Hoạt_động)-MIN(ROW(Hoạt_động))+1),ROWS($B$3:B99)))&\" \"&CHAR(10)&(INDEX(Kết_quả,SMALL(IF(Mục_tiêu=$B$2,ROW(Kết_quả)-MIN(ROW(Kết_quả))+1),ROWS($B$3:B99))))&CHAR(10),\"\")","v":""},null,{"$f":"IFERROR(INDEX(Hoạt_động,SMALL(IF(Mục_tiêu=$D$2,ROW(Hoạt_động)-MIN(ROW(Hoạt_động))+1),ROWS($B$3:B99)))&CHAR(10),\"\")","v":""},null,{"$f":"IFERROR(INDEX(Hoạt_động,SMALL(IF(Mục_tiêu=$F$2,ROW(Hoạt_động)-MIN(ROW(Hoạt_động))+1),ROWS($B$3:B99)))&CHAR(10),\"\")","v":""},null,{"$f":"IFERROR(INDEX(Hoạt_động,SMALL(IF(Mục_tiêu=$H$2,ROW(Hoạt_động)-MIN(ROW(Hoạt_động))+1),ROWS($B$3:B99)))&CHAR(10),\"\")","v":""}]
[null,{"$f":"IFERROR(INDEX(Hoạt_động,SMALL(IF(Mục_tiêu=$B$2,ROW(Hoạt_động)-MIN(ROW(Hoạt_động))+1),ROWS($B$3:B100)))&\" \"&CHAR(10)&(INDEX(Kết_quả,SMALL(IF(Mục_tiêu=$B$2,ROW(Kết_quả)-MIN(ROW(Kết_quả))+1),ROWS($B$3:B100))))&CHAR(10),\"\")","v":""},null,{"$f":"IFERROR(INDEX(Hoạt_động,SMALL(IF(Mục_tiêu=$D$2,ROW(Hoạt_động)-MIN(ROW(Hoạt_động))+1),ROWS($B$3:B100)))&CHAR(10),\"\")","v":""},null,{"$f":"IFERROR(INDEX(Hoạt_động,SMALL(IF(Mục_tiêu=$F$2,ROW(Hoạt_động)-MIN(ROW(Hoạt_động))+1),ROWS($B$3:B100)))&CHAR(10),\"\")","v":""},null,{"$f":"IFERROR(INDEX(Hoạt_động,SMALL(IF(Mục_tiêu=$H$2,ROW(Hoạt_động)-MIN(ROW(Hoạt_động))+1),ROWS($B$3:B100)))&CHAR(10),\"\")","v":""}]

{"sheet":"Giới thiệu","index":2,"n_rows":6,"n_cols":1,"rows_kept":6}
["Giới thiệu về sổ làm việc này"]
["Hướng dẫn dành cho bộ đọc màn hình"]
["Sổ làm việc này có 3 trang tính. \n\nDữ liệu lộ trình\nLộ trình Agile\nGiới thiệu\n\nHướng dẫn cho từng trang tính nằm trong cột A, bắt đầu ở ô A1 của từng trang tính. Các hướng dẫn này được viết bằng văn bản ẩn. Mỗi bước sẽ hướng dẫn bạn qua thông tin trong hàng đó. Mỗi bước tiếp theo sẽ tiếp tục trong ô A2, A3, v.v., trừ khi được chỉ dẫn rõ ràng. Ví dụ: văn bản hướng dẫn có thể nói \"tiếp tục đến ô A6\" để thực hiện bước tiếp theo. \n\nVăn bản ẩn sẽ không được in ra.\n\nĐể loại bỏ các hướng dẫn này khỏi bất kỳ trang tính nào, chỉ cần xóa cột A.\n"]
["Giới thiệu về sổ làm việc này"]
["Nhập thông tin về mốc trong trang tính Dữ liệu lộ trình.  Hãy nhớ sắp xếp theo mức ưu tiên rồi đến mốc để có được dạng xem Đã hoàn thành, Hiện tại, Ngắn hạn và Tương lai theo mức ưu tiên giảm dần -- với các mục được ưu tiên nhất ở trên đầu. Lộ trình trong trang tính Lộ trình Agile sẽ tự động cập nhật.\n"]
["Đây là hướng dẫn cuối cùng trong trang tính này."]